Workbook

Sheet DATA
B2: MID DAY MEALS SOFTWARE
B4: Mid day Meal Programme | G4: Day | H4: VI TO VIII | L4: Day | M4: IX TO X | Q4: Full version release shortly
B5: Starting date of Month | G5: 1 | H5: 125 | I5: 17 | J5: 2 | L5: 1 | M5: 254 | N5: 17 | O5: 254
B6: Mandal | C6: =G98 -> Balayapalli | G6: 2 | H6: 125 | I6: 18 | J6: 2 | L6: 2 | M6: 1 | N6: 18 | O6: 2
B7: Habitation | C7: Balayapalli | G7: 3 | H7: 125 | I7: 19 | J7: 2 | L7: 3 | M7: 1 | N7: 19 | O7: 2
B8: School Name | C8: ZPPHS,Balayapalli | G8: 4 | H8: 125 | I8: 20 | J8: 2 | L8: 4 | M8: 1 | N8: 20 | O8: 2
B9: Total students | C9: 242 | D9: 138 | E9: =C9+D9 -> 380 | G9: 5 | H9: 125 | I9: 21 | J9: 2 | L9: 5 | M9: 1 | N9: 21 | O9: 2
B10: Hostel Students | C10: 51 | D10: 22 | E10: =C10+D10 -> 73 | G10: 6 | H10: 125 | I10: 22 | J10: 2 | L10: 6 | M10: 1 | N10: 22 | O10: 2
B11: IA Name & Address | C11: B.Polamma | G11: 7 | H11: 125 | I11: 23 | J11: 2 | L11: 7 | M11: 1 | N11: 23 | O11: 2
B12: Opening Balance | C12: 1330.5 | G12: 8 | H12: 125 | I12: 24 | J12: 2 | L12: 8 | M12: 1 | N12: 24 | O12: 2
B13: Rice received during Month | C13: 1500 | D13: Date | E13: 5 | G13: 9 | H13: 125 | I13: 25 | J13: 2 | L13: 9 | M13: 1 | N13: 25 | O13: 2 | Q13: G.S.REDDY
C14: 1500 | D14: Date | E14: 5 | G14: 10 | H14: 125 | I14: 26 | J14: 2 | L14: 10 | M14: 1 | N14: 26 | O14: 2 | T14: Utalised Rice | V14: Balance Rice | W14: Bill amount
B15: Meals cost for Head | G15: 11 | H15: 125 | I15: 27 | J15: 2 | L15: 11 | M15: 1 | N15: 27 | O15: 2
B16: Balance Rice | C16: =C12+C13-(J20+O20)*0.15 -> 2829.9 | G16: 12 | H16: 125 | I16: 28 | J16: 2 | L16: 12 | M16: 1 | N16: 28 | O16: 2 | Q16: MDM VI To VIII | S16: ='MDM VI To VIII'!F45 -> 2159 | T16: ='MDM VI To VIII'!F45*0.15 -> 323.85 | V16: =C12+C13-T16 -> 2506.65 | W16: ='MDM VI To VIII'!H45 -> Rs.0
G17: 13 | H17: 125 | I17: 29 | J17: 2 | L17: 13 | M17: 1 | N17: 29 | O17: 2
B18: School Code | C18: 960061 | G18: 14 | H18: 125 | I18: 30 | J18: 2 | L18: 14 | M18: 1 | N18: 30 | O18: 2 | Q18: MDM IX To X | S18: ='MDM IX To X'!E44 -> 551 | T18: ='MDM IX To X'!E44*0.15 -> 82.65 | V18: =V16-T18 -> 2424 | W18: ='MDM IX To X'!G44 -> Rs.0
G19: 15 | H19: 125 | I19: 31 | J19: 2 | L19: 15 | M19: 1 | N19: 31 | O19: 2
G20: 16 | H20: 254 | J20: 2 | L20: 16 | M20: 1 | O20: 2 | Q20: MDM VI To X | S20: =S16+S18 -> 2710 | T20: ='MDM VI to X'!I44*0.15 -> 406.5 | V20: ='MDM VI to X'!L44*0.15 -> 0 | W20: ="Rs."&S16*C15+S18*C15 -> Rs.0
G22: S.No | H22: VI TO VII | J22: VI TO VII | L22: S.No | M22: VIII TO X | O22: VIII TO X
G23: 1 | H23: =IF(H5>0,6,0) -> 6 | J23: 6 | L23: 1 | M23: =IF(M5>0,8,0) -> 8 | O23: 8
G24: 2 | H24: 6 | J24: 6 | L24: 2 | M24: 8 | O24: 8
G25: 3 | H25: 6 | J25: 6 | L25: 3 | M25: 8 | O25: 8
G26: 4 | H26: 6 | J26: 6 | L26: 4 | M26: 8 | O26: 8
G27: 5 | H27: 6 | J27: 6 | L27: 5 | M27: 8 | O27: 8
G28: 6 | H28: 6 | J28: 6 | L28: 6 | M28: 8 | O28: 8
G29: 7 | H29: 6 | J29: 6 | L29: 7 | M29: 8 | O29: 8
G30: 8 | H30: 6 | J30: 6 | L30: 8 | M30: 8 | O30: 8
G31: 9 | H31: 6 | J31: 6 | L31: 9 | M31: 8 | O31: 8
G32: 10 | H32: 6 | J32: 6 | L32: 10 | M32: 8 | O32: 8
G33: 11 | H33: 6 | J33: 6 | L33: 11 | M33: 8 | O33: 8
F34: 5 | G34: 12 | H34: 6 | J34: 6 | L34: 12 | M34: 8 | O34: 8
G35: 13 | H35: 6 | J35: 6 | L35: 13 | M35: 8 | O35: 8
G36: 14 | H36: 6 | J36: 6 | L36: 14 | M36: 8 | O36: 8
G37: 15 | H37: 6 | J37: 6 | L37: 15 | M37: 8 | O37: 8
G38: 16 | H38: 6 | J38: =SUM(J23:J37)+SUM(H23:H38) -> 186 | L38: 16 | M38: 8 | O38: =SUM(O23:O37)+SUM(M23:M38) -> 248
G39: SC
G40: S.No | H40: VI TO VII | J40: VI TO VII | L40: S.No | M40: VIII TO X | O40: VIII TO X
G41: 1 | H41: =IF(H5>0,49,0) -> 49 | J41: 49 | L41: 1 | M41: =IF(M5>0,75,0) -> 75 | O41: 75
G42: 2 | H42: 49 | J42: 49 | L42: 2 | M42: 75 | O42: 75
G43: 3 | H43: 49 | J43: 49 | L43: 3 | M43: 75 | O43: 75
G44: 4 | H44: 49 | J44: 49 | L44: 4 | M44: 75 | O44: 75
G45: 5 | H45: 49 | J45: 49 | L45: 5 | M45: 75 | O45: 75
G46: 6 | H46: 49 | J46: 49 | L46: 6 | M46: 75 | O46: 75
G47: 7 | H47: 49 | J47: 49 | L47: 7 | M47: 75 | O47: 75
G48: 8 | H48: 49 | J48: 49 | L48: 8 | M48: 75 | O48: 75
G49: 9 | H49: 49 | J49: 49 | L49: 9 | M49: 75 | O49: 75
G50: 10 | H50: 49 | J50: 49 | L50: 10 | M50: 75 | O50: 75
G51: 11 | H51: 49 | J51: 49 | L51: 11 | M51: 75 | O51: 75
G52: 12 | H52: 49 | J52: 49 | L52: 12 | M52: 75 | O52: 75
G53: 13 | H53: 49 | J53: 49 | L53: 13 | M53: 75 | O53: 75
G54: 14 | H54: 49 | J54: 49 | L54: 14 | M54: 75 | O54: 75
G55: 15 | H55: 49 | J55: 49 | L55: 15 | M55: 75 | O55: 75
G56: 16 | H56: 49 | J56: =SUM(J41:J55)+SUM(H41:H56) -> 1519 | L56: 16 | M56: 75 | O56: =SUM(O41:O55)+SUM(M41:M56) -> 2325
D65: Days Of Month
D66: 1 | E66: 1
D67: 2 | E67: 2
D68: 3 | E68: 3
D69: 4 | E69: 4
D70: 5 | E70: 5
D71: 6 | E71: 6
D72: 7 | E72: 7
D73: 8 | E73: 8
D74: 9 | E74: 9
D75: 10 | E75: 10
D76: 11 | E76: 11
D77: 12 | E77: 12
D78: 13 | E78: 13
D79: 14 | E79: 14
D80: 15 | E80: 15
D81: 16 | E81: 16
D82: 17 | E82: 17
D83: 18 | E83: 18
D84: 19 | E84: 19
D85: 20 | E85: 20
D86: 21 | E86: 21
D87: 22 | E87: 22
D88: 23 | E88: 23
D89: 24 | E89: 24
D90: 25 | E90: 25
D91: 26 | E91: 26
D92: 27 | E92: 27
D93: 28 | E93: 28
D94: 29 | E94: 29
D95: 30 | E95: 30
D96: 31 | E96: 31
C97: 10 | D97: =LOOKUP(C97,C99:C110,D99:D110) -> October | E97: 1 | F97: =LOOKUP(E97,C99:C110,E99:E110) -> 2010 | G97: =D97&"-"&F97 -> October-2010 | J97: =DATE(F97,C97,1) -> 2010-10-01 | M97: =D97&" "&F97 -> October 2010
F98: 5 | G98: =LOOKUP(F98,F99:F144,G99:G144) -> Balayapalli
C99: 1 | D99: January | E99: 2010 | F99: 1 | G99: Allur | J99: 2 | L99: =LOOKUP(J99,J100:J101,L100:L101) -> 4.17
C100: 2 | D100: February | E100: 2011 | F100: 2 | G100: Ananthasagaram | J100: 1 | L100: 3.96
C101: 3 | D101: March | E101: 2012 | F101: 3 | G101: Anumasamudrampeta | J101: 2 | L101: 4.17
C102: 4 | D102: April | E102: 2013 | F102: 4 | G102: Atmakur
C103: 5 | D103: May | E103: 2014 | F103: 5 | G103: Balayapalli
C104: 6 | D104: June | E104: 2015 | F104: 6 | G104: Bogole
C105: 7 | D105: July | E105: 2016 | F105: 7 | G105: Buchireddipalem
C106: 8 | D106: August | E106: 2017 | F106: 8 | G106: Chejerla
C107: 9 | D107: September | E107: 2018 | F107: 9 | G107: Chillakur
C108: 10 | D108: October | E108: 2019 | F108: 10 | G108: Chittamur
C109: 11 | D109: November | E109: 2020 | F109: 11 | G109: Dagadarthi
C110: 12 | D110: December | E110: 2021 | F110: 12 | G110: Dakkili
F111: 13 | G111: Doravarisatram
F112: 14 | G112: Duttalur
F113: 15 | G113: Gudur
F114: 16 | G114: Indukurpet
F115: 17 | G115: Jaladanki
F116: 18 | G116: Kaligiri
F117: 19 | G117: Kaluvoya
F118: 20 | G118: Kavali
F119: 21 | G119: Kodavalur
F120: 22 | G120: Kondapuram
F121: 23 | G121: Kota
F122: 24 | G122: Kovur
F123: 25 | G123: Manubolu
F124: 26 | G124: Marripadu
F125: 27 | G125: Muthukur
F126: 28 | G126: Naidupeta
F127: 29 | G127: Nellore
F128: 30 | G128: Ojili
F129: 31 | G129: Pellakur
F130: 32 | G130: Podlakur
F131: 33 | G131: Rapur
F132: 34 | G132: Sangam
F133: 35 | G133: Seetharamapuram
F134: 36 | G134: Sullurpeta
F135: 37 | G135: Sydapuram
F136: 38 | G136: Tada
F137: 39 | G137: Thotapalligudur
F138: 40 | G138: Udayagiri
F139: 41 | G139: Vakadu
F140: 42 | G140: Varikuntapadu
F141: 43 | G141: Venkatachalam
F142: 44 | G142: Venkatagiri
F143: 45 | G143: Vidavalur
F144: 46 | G144: Vinjamur

Sheet ST (hidden)
B2: DAY-WISE DETAILED VOUCHER FOR SERVING MID-DAY MEAL PROGRAMME FOR THE MONTH OF
B3: =DATA!C5 -> 00:00:00 | G3: (To be prepared by IA/HM and submit toMPDO)
B5: =CONCATENATE("Name of the Mandal:",DATA!C6) -> Name of the Mandal:Balayapalli | G5: =CONCATENATE("School Name & Place:",DATA!C8) -> School Name & Place:ZPPHS,Balayapalli
B6: =CONCATENATE("Name of the Habitation:",DATA!C7) -> Name of the Habitation:Balayapalli | G6: MDM School Code:
B8: =CONCATENATE("Regular students:",DATA!E9-DATA!E10," ","Hostel Students:",DATA!E10," ","Total Roll:",DATA!E9-DATA!E10+DATA!E10) -> Regular students:307 Hostel Students:73 Total Roll:380
B9: =CONCATENATE("IA Name & Address:",DATA!C11) -> IA Name & Address:B.Polamma
B11: DATE | C11: DAY | D11: ST Children attended to School | G11: ST No. of Children Fed | J11: Cost for child | K11: Total amount
D12: VI TO VII | E12: VIII TO X | F12: Total | G12: VI TO VII | H12: VIII TO X | I12: Total
B13: =DATA!C5 -> 00:00:00 | C13: =B13 -> 00:00:00 | D13: =DATA!H23 -> 6 | E13: =DATA!M23 -> 8 | F13: =IF(D13=0,0,D13+E13) -> 14 | G13: =IF(C13="Sunday"," ",D13) -> 6 | H13: =IF(D13="Sunday"," ",E13) -> 8 | I13: =IF(G13=0,0,G13+H13) -> 14 | J13: =IF(I13=0," ",DATA!C15) -> 0 | K13: =IF(I13=0," ",I13*J13) -> 0
B14: =B13+1 -> 1900-01-01 | C14: 1900-01-01 | D14: =DATA!H24 -> 6 | E14: =DATA!M24 -> 8 | F14: 14 | G14: 6 | H14: 8 | I14: 14 | J14: =IF(I14=0," ",DATA!C15) -> 0 | K14: =IF(I14=0," ",I14*J14) -> 0
B15: 1900-01-02 | C15: 1900-01-02 | D15: =DATA!H25 -> 6 | E15: =DATA!M25 -> 8 | F15: 14 | G15: 6 | H15: 8 | I15: 14 | J15: =IF(I15=0," ",DATA!C15) -> 0 | K15: 0
B16: 1900-01-03 | C16: 1900-01-03 | D16: =DATA!H26 -> 6 | E16: =DATA!M26 -> 8 | F16: 14 | G16: 6 | H16: 8 | I16: 14 | J16: =IF(I16=0," ",DATA!C15) -> 0 | K16: 0
B17: 1900-01-04 | C17: 1900-01-04 | D17: =DATA!H27 -> 6 | E17: =DATA!M27 -> 8 | F17: 14 | G17: 6 | H17: 8 | I17: 14 | J17: =IF(I17=0," ",DATA!C15) -> 0 | K17: 0
B18: 1900-01-05 | C18: 1900-01-05 | D18: =DATA!H28 -> 6 | E18: =DATA!M28 -> 8 | F18: 14 | G18: 6 | H18: 8 | I18: 14 | J18: =IF(I18=0," ",DATA!C15) -> 0 | K18: 0
B19: 1900-01-06 | C19: 1900-01-06 | D19: =DATA!H29 -> 6 | E19: =DATA!M29 -> 8 | F19: 14 | G19: 6 | H19: 8 | I19: 14 | J19: =IF(I19=0," ",DATA!C15) -> 0 | K19: 0
B20: 1900-01-07 | C20: 1900-01-07 | D20: =DATA!H30 -> 6 | E20: =DATA!M30 -> 8 | F20: 14 | G20: 6 | H20: 8 | I20: 14 | J20: =IF(I20=0," ",DATA!C15) -> 0 | K20: 0
B21: 1900-01-08 | C21: 1900-01-08 | D21: =DATA!H31 -> 6 | E21: =DATA!M31 -> 8 | F21: 14 | G21: 6 | H21: 8 | I21: 14 | J21: =IF(I21=0," ",DATA!C15) -> 0 | K21: =IF(I21=0," ",I21*J21) -> 0
B22: 1900-01-09 | C22: 1900-01-09 | D22: =DATA!H32 -> 6 | E22: =DATA!M32 -> 8 | F22: 14 | G22: 6 | H22: 8 | I22: 14 | J22: =IF(I22=0," ",DATA!C15) -> 0 | K22: 0
B23: 1900-01-10 | C23: 1900-01-10 | D23: =DATA!H33 -> 6 | E23: =DATA!M33 -> 8 | F23: 14 | G23: 6 | H23: 8 | I23: 14 | J23: =IF(I23=0," ",DATA!C15) -> 0 | K23: 0
B24: 1900-01-11 | C24: 1900-01-11 | D24: =DATA!H34 -> 6 | E24: =DATA!M34 -> 8 | F24: 14 | G24: 6 | H24: 8 | I24: 14 | J24: =IF(I24=0," ",DATA!C15) -> 0 | K24: 0
B25: 1900-01-12 | C25: 1900-01-12 | D25: =DATA!H35 -> 6 | E25: =DATA!M35 -> 8 | F25: 14 | G25: 6 | H25: 8 | I25: 14 | J25: =IF(I25=0," ",DATA!C15) -> 0 | K25: 0
B26: 1900-01-13 | C26: 1900-01-13 | D26: =DATA!H36 -> 6 | E26: =DATA!M36 -> 8 | F26: 14 | G26: 6 | H26: 8 | I26: 14 | J26: =IF(I26=0," ",DATA!C15) -> 0 | K26: 0
B27: 1900-01-14 | C27: 1900-01-14 | D27: =DATA!H37 -> 6 | E27: =DATA!M37 -> 8 | F27: 14 | G27: 6 | H27: 8 | I27: 14 | J27: =IF(I27=0," ",DATA!C15) -> 0 | K27: 0
B28: 1900-01-15 | C28: 1900-01-15 | D28: =DATA!H38 -> 6 | E28: =DATA!M38 -> 8 | F28: 14 | G28: 6 | H28: 8 | I28: 14 | J28: =IF(I28=0," ",DATA!C15) -> 0 | K28: 0
B29: 1900-01-16 | C29: 1900-01-16 | D29: =DATA!J23 -> 6 | E29: =DATA!O23 -> 8 | F29: 14 | G29: 6 | H29: 8 | I29: 14 | J29: =IF(I29=0," ",DATA!C15) -> 0 | K29: 0
B30: 1900-01-17 | C30: 1900-01-17 | D30: =DATA!J24 -> 6 | E30: =DATA!O24 -> 8 | F30: 14 | G30: 6 | H30: 8 | I30: 14 | J30: =IF(I30=0," ",DATA!C15) -> 0 | K30: 0
B31: 1900-01-18 | C31: 1900-01-18 | D31: =DATA!J25 -> 6 | E31: =DATA!O25 -> 8 | F31: 14 | G31: 6 | H31: 8 | I31: 14 | J31: =IF(I31=0," ",DATA!C15) -> 0 | K31: 0
B32: 1900-01-19 | C32: 1900-01-19 | D32: =DATA!J26 -> 6 | E32: =DATA!O26 -> 8 | F32: 14 | G32: 6 | H32: 8 | I32: 14 | J32: =IF(I32=0," ",DATA!C15) -> 0 | K32: 0
B33: 1900-01-20 | C33: 1900-01-20 | D33: =DATA!J27 -> 6 | E33: =DATA!O27 -> 8 | F33: 14 | G33: 6 | H33: 8 | I33: 14 | J33: =IF(I33=0," ",DATA!C15) -> 0 | K33: 0
B34: 1900-01-21 | C34: 1900-01-21 | D34: =DATA!J28 -> 6 | E34: =DATA!O28 -> 8 | F34: 14 | G34: 6 | H34: 8 | I34: 14 | J34: =IF(I34=0," ",DATA!C15) -> 0 | K34: 0
B35: 1900-01-22 | C35: 1900-01-22 | D35: =DATA!J29 -> 6 | E35: =DATA!O29 -> 8 | F35: 14 | G35: 6 | H35: 8 | I35: 14 | J35: =IF(I35=0," ",DATA!C15) -> 0 | K35: 0
B36: 1900-01-23 | C36: 1900-01-23 | D36: =DATA!J30 -> 6 | E36: =DATA!O30 -> 8 | F36: 14 | G36: 6 | H36: 8 | I36: 14 | J36: =IF(I36=0," ",DATA!C15) -> 0 | K36: 0
B37: 1900-01-24 | C37: 1900-01-24 | D37: =DATA!J31 -> 6 | E37: =DATA!O31 -> 8 | F37: 14 | G37: 6 | H37: 8 | I37: 14 | J37: =IF(I37=0," ",DATA!C15) -> 0 | K37: 0
B38: 1900-01-25 | C38: 1900-01-25 | D38: =DATA!J32 -> 6 | E38: =DATA!O32 -> 8 | F38: 14 | G38: 6 | H38: 8 | I38: 14 | J38: =IF(I38=0," ",DATA!C15) -> 0 | K38: 0
B39: 1900-01-26 | C39: 1900-01-26 | D39: =DATA!J33 -> 6 | E39: =DATA!O33 -> 8 | F39: 14 | G39: 6 | H39: 8 | I39: 14 | J39: =IF(I39=0," ",DATA!C15) -> 0 | K39: 0
B40: 1900-01-27 | C40: 1900-01-27 | D40: =DATA!J34 -> 6 | E40: =DATA!O34 -> 8 | F40: 14 | G40: 6 | H40: 8 | I40: 14 | J40: =IF(I40=0," ",DATA!C15) -> 0 | K40: 0
B41: 1900-01-28 | C41: 1900-01-28 | D41: =DATA!J35 -> 6 | E41: =DATA!O35 -> 8 | F41: 14 | G41: 6 | H41: 8 | I41: 14 | J41: =IF(I41=0," ",DATA!C15) -> 0 | K41: 0
B42: 1900-01-29 | C42: 1900-01-29 | D42: =DATA!J36 -> 6 | E42: =DATA!O36 -> 8 | F42: 14 | G42: 6 | H42: 8 | I42: 14 | J42: =IF(I42=0," ",DATA!C15) -> 0 | K42: 0
B43: =IF(DATA!J19>0,B42+1,0) -> 1900-01-30 | C43: 1900-01-30 | D43: =DATA!J37 -> 6 | E43: =DATA!O37 -> 8 | F43: 14 | G43: 6 | H43: 8 | I43: 14 | J43: =IF(I43=0," ",DATA!C15) -> 0 | K43: 0
B44: Total | D44: =SUM(D13:D43) -> 186 | E44: 248 | F44: 434 | G44: 186 | H44: 248 | I44: 434 | J44: Total | K44: =SUM(K13:K43) -> 0 | N44: =K44+SC!K44+GEN!K44 -> 0
B45: Rice Particulars in KG's
B46: =CONCATENATE("Opening Balance:",DATA!C12," ","Rice received during Month:",DATA!C13," ","Total rice:",DATA!C12+DATA!C13," ","Utalised:",I44*0.15," ","Balance:",DATA!C12+DATA!C13-I44*0.15) -> Opening Balance:1330.5 Rice received during Month:1500 Total rice:2830.5 Utalised:65.1 Balance:2765.4
B49: Signature of the Chair person /Chairman of the Governing Body of the Aided School | H49: Signature of the authorised person of the Implementing Agency
N50: =DATA!C12+DATA!C13-I44*0.15 -> 2765.4
H52: Signature of the Head Master

Sheet SC (hidden)
B2: DAY-WISE DETAILED VOUCHER FOR SERVING MID-DAY MEAL PROGRAMME FOR THE MONTH OF
B3: =DATA!C5 -> 00:00:00 | G3: (To be prepared by IA/HM and submit toMPDO)
B5: =CONCATENATE("Name of the Mandal:",DATA!C6) -> Name of the Mandal:Balayapalli | G5: =CONCATENATE("School Name & Place:",DATA!C8) -> School Name & Place:ZPPHS,Balayapalli
B6: =CONCATENATE("Name of the Habitation:",DATA!C7) -> Name of the Habitation:Balayapalli | G6: MDM School Code:
B8: =CONCATENATE("Regular students:",DATA!E9-DATA!E10," ","Hostel Students:",DATA!E10," ","Total Roll:",DATA!E9-DATA!E10+DATA!E10) -> Regular students:307 Hostel Students:73 Total Roll:380
B9: =CONCATENATE("IA Name & Address:",DATA!C11) -> IA Name & Address:B.Polamma
B11: DATE | C11: DAY | D11: SC Children attended to School | G11: SC No. of Children Fed | J11: Cost for child | K11: Total amount
D12: VI TO VII | E12: VIII TO X | F12: Total | G12: VI TO VII | H12: VIII TO X | I12: Total
B13: =DATA!C5 -> 00:00:00 | C13: =B13 -> 00:00:00 | D13: =DATA!H41 -> 49 | E13: =DATA!M41 -> 75 | F13: =IF(D13=0,0,D13+E13) -> 124 | G13: =IF(C13="Sunday"," ",D13) -> 49 | H13: =IF(D13="Sunday"," ",E13) -> 75 | I13: =IF(G13=0,0,G13+H13) -> 124 | J13: =IF(I13=0," ",DATA!C15) -> 0 | K13: =IF(I13=0," ",I13*J13) -> 0
B14: =B13+1 -> 1900-01-01 | C14: 1900-01-01 | D14: =DATA!H42 -> 49 | E14: =DATA!M42 -> 75 | F14: 124 | G14: 49 | H14: 75 | I14: 124 | J14: =IF(I14=0," ",DATA!C15) -> 0 | K14: =IF(I14=0," ",I14*J14) -> 0
B15: 1900-01-02 | C15: 1900-01-02 | D15: =DATA!H43 -> 49 | E15: =DATA!M43 -> 75 | F15: 124 | G15: 49 | H15: 75 | I15: 124 | J15: =IF(I15=0," ",DATA!C15) -> 0 | K15: =IF(I15=0," ",I15*J15) -> 0
B16: 1900-01-03 | C16: 1900-01-03 | D16: =DATA!H44 -> 49 | E16: =DATA!M44 -> 75 | F16: 124 | G16: 49 | H16: 75 | I16: 124 | J16: =IF(I16=0," ",DATA!C15) -> 0 | K16: =IF(I16=0," ",I16*J16) -> 0
B17: 1900-01-04 | C17: 1900-01-04 | D17: =DATA!H45 -> 49 | E17: =DATA!M45 -> 75 | F17: 124 | G17: 49 | H17: 75 | I17: 124 | J17: =IF(I17=0," ",DATA!C15) -> 0 | K17: 0
B18: 1900-01-05 | C18: 1900-01-05 | D18: =DATA!H46 -> 49 | E18: =DATA!M46 -> 75 | F18: 124 | G18: 49 | H18: 75 | I18: 124 | J18: =IF(I18=0," ",DATA!C15) -> 0 | K18: 0
B19: 1900-01-06 | C19: 1900-01-06 | D19: =DATA!H47 -> 49 | E19: =DATA!M47 -> 75 | F19: 124 | G19: 49 | H19: 75 | I19: 124 | J19: =IF(I19=0," ",DATA!C15) -> 0 | K19: 0
B20: 1900-01-07 | C20: 1900-01-07 | D20: =DATA!H48 -> 49 | E20: =DATA!M48 -> 75 | F20: 124 | G20: 49 | H20: 75 | I20: 124 | J20: =IF(I20=0," ",DATA!C15) -> 0 | K20: 0
B21: 1900-01-08 | C21: 1900-01-08 | D21: =DATA!H49 -> 49 | E21: =DATA!M49 -> 75 | F21: 124 | G21: 49 | H21: 75 | I21: 124 | J21: =IF(I21=0," ",DATA!C15) -> 0 | K21: 0
B22: 1900-01-09 | C22: 1900-01-09 | D22: =DATA!H50 -> 49 | E22: =DATA!M50 -> 75 | F22: 124 | G22: 49 | H22: 75 | I22: 124 | J22: =IF(I22=0," ",DATA!C15) -> 0 | K22: 0
B23: 1900-01-10 | C23: 1900-01-10 | D23: =DATA!H51 -> 49 | E23: =DATA!M51 -> 75 | F23: 124 | G23: 49 | H23: 75 | I23: 124 | J23: =IF(I23=0," ",DATA!C15) -> 0 | K23: 0
B24: 1900-01-11 | C24: 1900-01-11 | D24: =DATA!H52 -> 49 | E24: =DATA!M52 -> 75 | F24: 124 | G24: 49 | H24: 75 | I24: 124 | J24: =IF(I24=0," ",DATA!C15) -> 0 | K24: 0
B25: 1900-01-12 | C25: 1900-01-12 | D25: =DATA!H53 -> 49 | E25: =DATA!M53 -> 75 | F25: 124 | G25: 49 | H25: 75 | I25: 124 | J25: =IF(I25=0," ",DATA!C15) -> 0 | K25: 0
B26: 1900-01-13 | C26: 1900-01-13 | D26: =DATA!H54 -> 49 | E26: =DATA!M54 -> 75 | F26: 124 | G26: 49 | H26: 75 | I26: 124 | J26: =IF(I26=0," ",DATA!C15) -> 0 | K26: 0
B27: 1900-01-14 | C27: 1900-01-14 | D27: =DATA!H55 -> 49 | E27: =DATA!M55 -> 75 | F27: 124 | G27: 49 | H27: 75 | I27: 124 | J27: =IF(I27=0," ",DATA!C15) -> 0 | K27: 0
B28: 1900-01-15 | C28: 1900-01-15 | D28: =DATA!H56 -> 49 | E28: =DATA!M56 -> 75 | F28: 124 | G28: 49 | H28: 75 | I28: 124 | J28: =IF(I28=0," ",DATA!C15) -> 0 | K28: 0
B29: 1900-01-16 | C29: 1900-01-16 | D29: =DATA!J41 -> 49 | E29: =DATA!O41 -> 75 | F29: 124 | G29: 49 | H29: 75 | I29: 124 | J29: =IF(I29=0," ",DATA!C15) -> 0 | K29: 0
B30: 1900-01-17 | C30: 1900-01-17 | D30: =DATA!J42 -> 49 | E30: =DATA!O42 -> 75 | F30: 124 | G30: 49 | H30: 75 | I30: 124 | J30: =IF(I30=0," ",DATA!C15) -> 0 | K30: 0
B31: 1900-01-18 | C31: 1900-01-18 | D31: =DATA!J43 -> 49 | E31: =DATA!O43 -> 75 | F31: 124 | G31: 49 | H31: 75 | I31: 124 | J31: =IF(I31=0," ",DATA!C15) -> 0 | K31: 0
B32: 1900-01-19 | C32: 1900-01-19 | D32: =DATA!J44 -> 49 | E32: =DATA!O44 -> 75 | F32: 124 | G32: 49 | H32: 75 | I32: 124 | J32: =IF(I32=0," ",DATA!C15) -> 0 | K32: 0
B33: 1900-01-20 | C33: 1900-01-20 | D33: =DATA!J45 -> 49 | E33: =DATA!O45 -> 75 | F33: 124 | G33: 49 | H33: 75 | I33: 124 | J33: =IF(I33=0," ",DATA!C15) -> 0 | K33: 0
B34: 1900-01-21 | C34: 1900-01-21 | D34: =DATA!J46 -> 49 | E34: =DATA!O46 -> 75 | F34: 124 | G34: 49 | H34: 75 | I34: 124 | J34: =IF(I34=0," ",DATA!C15) -> 0 | K34: 0
B35: 1900-01-22 | C35: 1900-01-22 | D35: =DATA!J47 -> 49 | E35: =DATA!O47 -> 75 | F35: 124 | G35: 49 | H35: 75 | I35: 124 | J35: =IF(I35=0," ",DATA!C15) -> 0 | K35: 0
B36: 1900-01-23 | C36: 1900-01-23 | D36: =DATA!J48 -> 49 | E36: =DATA!O48 -> 75 | F36: 124 | G36: 49 | H36: 75 | I36: 124 | J36: =IF(I36=0," ",DATA!C15) -> 0 | K36: 0
B37: 1900-01-24 | C37: 1900-01-24 | D37: =DATA!J49 -> 49 | E37: =DATA!O49 -> 75 | F37: 124 | G37: 49 | H37: 75 | I37: 124 | J37: =IF(I37=0," ",DATA!C15) -> 0 | K37: 0
B38: 1900-01-25 | C38: 1900-01-25 | D38: =DATA!J50 -> 49 | E38: =DATA!O50 -> 75 | F38: 124 | G38: 49 | H38: 75 | I38: 124 | J38: =IF(I38=0," ",DATA!C15) -> 0 | K38: 0
B39: 1900-01-26 | C39: 1900-01-26 | D39: =DATA!J51 -> 49 | E39: =DATA!O51 -> 75 | F39: 124 | G39: 49 | H39: 75 | I39: 124 | J39: =IF(I39=0," ",DATA!C15) -> 0 | K39: 0
B40: 1900-01-27 | C40: 1900-01-27 | D40: =DATA!J52 -> 49 | E40: =DATA!O52 -> 75 | F40: 124 | G40: 49 | H40: 75 | I40: 124 | J40: =IF(I40=0," ",DATA!C15) -> 0 | K40: 0
B41: 1900-01-28 | C41: 1900-01-28 | D41: =DATA!J53 -> 49 | E41: =DATA!O53 -> 75 | F41: 124 | G41: 49 | H41: 75 | I41: 124 | J41: =IF(I41=0," ",DATA!C15) -> 0 | K41: 0
B42: 1900-01-29 | C42: 1900-01-29 | D42: =DATA!J54 -> 49 | E42: =DATA!O54 -> 75 | F42: 124 | G42: 49 | H42: 75 | I42: 124 | J42: =IF(I42=0," ",DATA!C15) -> 0 | K42: 0
B43: =IF(DATA!J19>0,B42+1,0) -> 1900-01-30 | C43: 1900-01-30 | D43: =DATA!J55 -> 49 | E43: =DATA!O55 -> 75 | F43: 124 | G43: 49 | H43: 75 | I43: 124 | J43: =IF(I43=0," ",DATA!C15) -> 0 | K43: 0
B44: Total | D44: =SUM(D13:D43) -> 1519 | E44: 2325 | F44: 3844 | G44: 1519 | H44: 2325 | I44: 3844 | J44: Total | K44: =SUM(K13:K43) -> 0 | N44: =K44+ST!K44+GEN!K44 -> 0
B45: Rice Particulars in KG's
B46: =CONCATENATE("Opening Balance:",ST!N50," ","Rice received during Month:",0," ","Total rice:",ST!N50," ","Utalised:",I44*0.15," ","Balance:",ST!N50-I44*0.15) -> Opening Balance:2765.4 Rice received during Month:0 Total rice:2765.4 Utalised:576.6 Balance:2188.8
B49: Signature of the Chair person /Chairman of the Governing Body of the Aided School | H49: Signature of the authorised person of the Implementing Agency | N49: =ST!N50-I44*0.15 -> 2188.8
H52: Signature of the Head Master

Sheet GEN (hidden)
B2: DAY-WISE DETAILED VOUCHER FOR SERVING MID-DAY MEAL PROGRAMME FOR THE MONTH OF
B3: =DATA!C5 -> 00:00:00 | G3: (To be prepared by IA/HM and submit toMPDO)
B5: =CONCATENATE("Name of the Mandal:",DATA!C6) -> Name of the Mandal:Balayapalli | G5: =CONCATENATE("School Name & Place:",DATA!C8) -> School Name & Place:ZPPHS,Balayapalli
B6: =CONCATENATE("Name of the Habitation:",DATA!C7) -> Name of the Habitation:Balayapalli | G6: MDM School Code:
B8: =CONCATENATE("Regular students:",DATA!E9-DATA!E10," ","Hostel Students:",DATA!E10," ","Total Roll:",DATA!E9-DATA!E10+DATA!E10) -> Regular students:307 Hostel Students:73 Total Roll:380
B9: =CONCATENATE("IA Name & Address:",DATA!C11) -> IA Name & Address:B.Polamma
B11: DATE | C11: DAY | D11: (GEN) Children attended to School | G11: (GEN) No. of Children Fed | J11: Cost for child | K11: Total amount
D12: VI TO VII | E12: VIII TO X | F12: Total | G12: VI TO VII | H12: VIII TO X | I12: Total
B13: =DATA!C5 -> 00:00:00 | C13: =B13 -> 00:00:00 | D13: =DATA!H5-DATA!H23-DATA!H41 -> 70 | E13: =DATA!M5-DATA!M23-DATA!M41 -> 171 | F13: =IF(D13=0,0,D13+E13) -> 241 | G13: =IF(C13="Sunday"," ",D13) -> 70 | H13: =IF(D13="Sunday"," ",E13) -> 171 | I13: =IF(G13=0,0,G13+H13) -> 241 | J13: =IF(I13=0," ",DATA!C15) -> 0 | K13: =IF(I13=0," ",I13*J13) -> 0
B14: =B13+1 -> 1900-01-01 | C14: 1900-01-01 | D14: =DATA!H6-DATA!H24-DATA!H42 -> 70 | E14: =DATA!M6-DATA!M24-DATA!M42 -> -82 | F14: -12 | G14: 70 | H14: -82 | I14: -12 | J14: =IF(I14=0," ",DATA!C15) -> 0 | K14: =IF(I14=0," ",I14*J14) -> 0
B15: 1900-01-02 | C15: 1900-01-02 | D15: =DATA!H7-DATA!H25-DATA!H43 -> 70 | E15: =DATA!M7-DATA!M25-DATA!M43 -> -82 | F15: -12 | G15: 70 | H15: -82 | I15: -12 | J15: =IF(I15=0," ",DATA!C15) -> 0 | K15: =IF(I15=0," ",I15*J15) -> 0
B16: 1900-01-03 | C16: 1900-01-03 | D16: =DATA!H8-DATA!H26-DATA!H44 -> 70 | E16: =DATA!M8-DATA!M26-DATA!M44 -> -82 | F16: -12 | G16: 70 | H16: -82 | I16: -12 | J16: =IF(I16=0," ",DATA!C15) -> 0 | K16: =IF(I16=0," ",I16*J16) -> 0
B17: 1900-01-04 | C17: 1900-01-04 | D17: =DATA!H9-DATA!H27-DATA!H45 -> 70 | E17: =DATA!M9-DATA!M27-DATA!M45 -> -82 | F17: -12 | G17: 70 | H17: -82 | I17: -12 | J17: =IF(I17=0," ",DATA!C15) -> 0 | K17: =IF(I17=0," ",I17*J17) -> 0
B18: 1900-01-05 | C18: 1900-01-05 | D18: =DATA!H10-DATA!H28-DATA!H46 -> 70 | E18: =DATA!M10-DATA!M28-DATA!M46 -> -82 | F18: -12 | G18: 70 | H18: -82 | I18: -12 | J18: =IF(I18=0," ",DATA!C15) -> 0 | K18: 0
B19: 1900-01-06 | C19: 1900-01-06 | D19: =DATA!H11-DATA!H29-DATA!H47 -> 70 | E19: =DATA!M11-DATA!M29-DATA!M47 -> -82 | F19: -12 | G19: 70 | H19: -82 | I19: -12 | J19: =IF(I19=0," ",DATA!C15) -> 0 | K19: 0
B20: 1900-01-07 | C20: 1900-01-07 | D20: =DATA!H12-DATA!H30-DATA!H48 -> 70 | E20: =DATA!M12-DATA!M30-DATA!M48 -> -82 | F20: -12 | G20: 70 | H20: -82 | I20: -12 | J20: =IF(I20=0," ",DATA!C15) -> 0 | K20: 0
B21: 1900-01-08 | C21: 1900-01-08 | D21: =DATA!H13-DATA!H31-DATA!H49 -> 70 | E21: =DATA!M13-DATA!M31-DATA!M49 -> -82 | F21: -12 | G21: 70 | H21: -82 | I21: -12 | J21: =IF(I21=0," ",DATA!C15) -> 0 | K21: 0
B22: 1900-01-09 | C22: 1900-01-09 | D22: =DATA!H14-DATA!H32-DATA!H50 -> 70 | E22: =DATA!M14-DATA!M32-DATA!M50 -> -82 | F22: -12 | G22: 70 | H22: -82 | I22: -12 | J22: =IF(I22=0," ",DATA!C15) -> 0 | K22: 0
B23: 1900-01-10 | C23: 1900-01-10 | D23: =DATA!H15-DATA!H33-DATA!H51 -> 70 | E23: =DATA!M15-DATA!M33-DATA!M51 -> -82 | F23: -12 | G23: 70 | H23: -82 | I23: -12 | J23: =IF(I23=0," ",DATA!C15) -> 0 | K23: 0
B24: 1900-01-11 | C24: 1900-01-11 | D24: =DATA!H16-DATA!H34-DATA!H52 -> 70 | E24: =DATA!M16-DATA!M34-DATA!M52 -> -82 | F24: -12 | G24: 70 | H24: -82 | I24: -12 | J24: =IF(I24=0," ",DATA!C15) -> 0 | K24: 0
B25: 1900-01-12 | C25: 1900-01-12 | D25: =DATA!H17-DATA!H35-DATA!H53 -> 70 | E25: =DATA!M17-DATA!M35-DATA!M53 -> -82 | F25: -12 | G25: 70 | H25: -82 | I25: -12 | J25: =IF(I25=0," ",DATA!C15) -> 0 | K25: 0
B26: 1900-01-13 | C26: 1900-01-13 | D26: =DATA!H18-DATA!H36-DATA!H54 -> 70 | E26: =DATA!M18-DATA!M36-DATA!M54 -> -82 | F26: -12 | G26: 70 | H26: -82 | I26: -12 | J26: =IF(I26=0," ",DATA!C15) -> 0 | K26: 0
B27: 1900-01-14 | C27: 1900-01-14 | D27: =DATA!H19-DATA!H37-DATA!H55 -> 70 | E27: =DATA!M19-DATA!M37-DATA!M55 -> -82 | F27: -12 | G27: 70 | H27: -82 | I27: -12 | J27: =IF(I27=0," ",DATA!C15) -> 0 | K27: 0
B28: 1900-01-15 | C28: 1900-01-15 | D28: =DATA!H20-DATA!H38-DATA!H56 -> 199 | E28: =DATA!M20-DATA!M38-DATA!M56 -> -82 | F28: 117 | G28: 199 | H28: -82 | I28: 117 | J28: =IF(I28=0," ",DATA!C15) -> 0 | K28: 0
B29: 1900-01-16 | C29: 1900-01-16 | D29: =DATA!J5-DATA!J23-DATA!J41 -> -53 | E29: =DATA!O5-DATA!O23-DATA!O41 -> 171 | F29: 118 | G29: -53 | H29: 171 | I29: 118 | J29: =IF(I29=0," ",DATA!C15) -> 0 | K29: 0
B30: 1900-01-17 | C30: 1900-01-17 | D30: =DATA!J6-DATA!J24-DATA!J42 -> -53 | E30: =DATA!O6-DATA!O24-DATA!O42 -> -81 | F30: -134 | G30: -53 | H30: -81 | I30: -134 | J30: =IF(I30=0," ",DATA!C15) -> 0 | K30: 0
B31: 1900-01-18 | C31: 1900-01-18 | D31: =DATA!J7-DATA!J25-DATA!J43 -> -53 | E31: =DATA!O7-DATA!O25-DATA!O43 -> -81 | F31: -134 | G31: -53 | H31: -81 | I31: -134 | J31: =IF(I31=0," ",DATA!C15) -> 0 | K31: 0
B32: 1900-01-19 | C32: 1900-01-19 | D32: =DATA!J8-DATA!J26-DATA!J44 -> -53 | E32: =DATA!O8-DATA!O26-DATA!O44 -> -81 | F32: -134 | G32: -53 | H32: -81 | I32: -134 | J32: =IF(I32=0," ",DATA!C15) -> 0 | K32: 0
B33: 1900-01-20 | C33: 1900-01-20 | D33: =DATA!J9-DATA!J27-DATA!J45 -> -53 | E33: =DATA!O9-DATA!O27-DATA!O45 -> -81 | F33: -134 | G33: -53 | H33: -81 | I33: -134 | J33: =IF(I33=0," ",DATA!C15) -> 0 | K33: 0
B34: 1900-01-21 | C34: 1900-01-21 | D34: =DATA!J10-DATA!J28-DATA!J46 -> -53 | E34: =DATA!O10-DATA!O28-DATA!O46 -> -81 | F34: -134 | G34: -53 | H34: -81 | I34: -134 | J34: =IF(I34=0," ",DATA!C15) -> 0 | K34: 0
B35: 1900-01-22 | C35: 1900-01-22 | D35: =DATA!J11-DATA!J29-DATA!J47 -> -53 | E35: =DATA!O11-DATA!O29-DATA!O47 -> -81 | F35: -134 | G35: -53 | H35: -81 | I35: -134 | J35: =IF(I35=0," ",DATA!C15) -> 0 | K35: 0
B36: 1900-01-23 | C36: 1900-01-23 | D36: =DATA!J12-DATA!J30-DATA!J48 -> -53 | E36: =DATA!O12-DATA!O30-DATA!O48 -> -81 | F36: -134 | G36: -53 | H36: -81 | I36: -134 | J36: =IF(I36=0," ",DATA!C15) -> 0 | K36: 0
B37: 1900-01-24 | C37: 1900-01-24 | D37: =DATA!J13-DATA!J31-DATA!J49 -> -53 | E37: =DATA!O13-DATA!O31-DATA!O49 -> -81 | F37: -134 | G37: -53 | H37: -81 | I37: -134 | J37: =IF(I37=0," ",DATA!C15) -> 0 | K37: 0
B38: 1900-01-25 | C38: 1900-01-25 | D38: =DATA!J14-DATA!J32-DATA!J50 -> -53 | E38: =DATA!O14-DATA!O32-DATA!O50 -> -81 | F38: -134 | G38: -53 | H38: -81 | I38: -134 | J38: =IF(I38=0," ",DATA!C15) -> 0 | K38: 0
B39: 1900-01-26 | C39: 1900-01-26 | D39: =DATA!J15-DATA!J33-DATA!J51 -> -53 | E39: =DATA!O15-DATA!O33-DATA!O51 -> -81 | F39: -134 | G39: -53 | H39: -81 | I39: -134 | J39: =IF(I39=0," ",DATA!C15) -> 0 | K39: 0
B40: 1900-01-27 | C40: 1900-01-27 | D40: =DATA!J16-DATA!J34-DATA!J52 -> -53 | E40: =DATA!O16-DATA!O34-DATA!O52 -> -81 | F40: -134 | G40: -53 | H40: -81 | I40: -134 | J40: =IF(I40=0," ",DATA!C15) -> 0 | K40: 0
B41: 1900-01-28 | C41: 1900-01-28 | D41: =DATA!J17-DATA!J35-DATA!J53 -> -53 | E41: =DATA!O17-DATA!O35-DATA!O53 -> -81 | F41: -134 | G41: -53 | H41: -81 | I41: -134 | J41: =IF(I41=0," ",DATA!C15) -> 0 | K41: 0
B42: 1900-01-29 | C42: 1900-01-29 | D42: =DATA!J18-DATA!J36-DATA!J54 -> -53 | E42: =DATA!O18-DATA!O36-DATA!O54 -> -81 | F42: -134 | G42: -53 | H42: -81 | I42: -134 | J42: =IF(I42=0," ",DATA!C15) -> 0 | K42: 0
B43: =IF(DATA!J19>0,B42+1,0) -> 1900-01-30 | C43: 1900-01-30 | D43: =DATA!J19-DATA!J37-DATA!J55 -> -53 | E43: =DATA!O19-DATA!O37-DATA!O55 -> -81 | F43: -134 | G43: -53 | H43: -81 | I43: -134 | J43: =IF(I43=0," ",DATA!C15) -> 0 | K43: 0
B44: Total | D44: =SUM(D13:D43) -> 454 | E44: -2022 | F44: -1568 | G44: 454 | H44: -2022 | I44: -1568 | J44: Total | K44: =SUM(K13:K43) -> 0
B45: Rice Particulars in KG's | N45: =K44+SC!K44+ST!K44 -> 0
B46: =CONCATENATE("Opening Balance:",SC!N49," ","Rice received during Month:",0," ","Total rice:",SC!N49," ","Utalised:",I44*0.15," ","Balance:",SC!N49-I44*0.15) -> Opening Balance:2188.8 Rice received during Month:0 Total rice:2188.8 Utalised:-235.2 Balance:2424
B49: Signature of the Chair person /Chairman of the Governing Body of the Aided School | H49: Signature of the authorised person of the Implementing Agency
H52: Signature of the Head Master

Sheet MDM VI To VIII
C3: =CONCATENATE("DAY-WISE DETAILED VOUCHER FOR SERVING MID-DAY MEAL PROGRAMME FOR THE MONTH OF ") -> DAY-WISE DETAILED VOUCHER FOR SERVING MID-DAY MEAL PROGRAMME FOR THE MONTH OF
C4: =DATA!M97 -> October 2010 | F4: (To be prepared by IA/HM and submit toMPDO)
C6: =CONCATENATE("Name of the Mandal:",DATA!C6) -> Name of the Mandal:Balayapalli | F6: =CONCATENATE("School Name & Place:",DATA!C8) -> School Name & Place:ZPPHS,Balayapalli
C7: =CONCATENATE("Name of the Habitation:",DATA!C7) -> Name of the Habitation:Balayapalli | F7: MDM School Code:
C9: =CONCATENATE("Regular students:",DATA!E9-DATA!E10," ","Hostel Students:",DATA!E10," ","Total Roll:",DATA!E9-DATA!E10+DATA!E10) -> Regular students:307 Hostel Students:73 Total Roll:380
C10: =CONCATENATE("IA Name & Address:",DATA!C11) -> IA Name & Address:B.Polamma
C12: DATE | D12: DAY | E12: Children attended to School | F12: No. of Children Fed | G12: Cost for child | H12: Total amount
E13: VI TO VIII | F13: VI TO VIII
C14: =DATA!J97 -> 2010-10-01 | D14: =C14 -> 2010-10-01 | E14: =DATA!H5 -> 125 | F14: =IF(D14="Sunday"," ",E14) -> 125 | G14: =IF(F14>0,CONCATENATE("Rs.",DATA!C15)," ") -> Rs. | H14: =IF(F14>0,CONCATENATE(,"Rs.",DATA!C15*'MDM VI To VIII'!F14)," ") -> Rs.0 | I14: =F14*DATA!C15 -> 0
C15: =C14+1 -> 2010-10-02 | D15: =C15 -> 2010-10-02 | E15: =DATA!H6 -> 125 | F15: =IF(D15="Sunday"," ",E15) -> 125 | G15: =IF(F15>0,CONCATENATE("Rs.",DATA!C15)," ") -> Rs. | H15: =IF(F15>0,CONCATENATE(,"Rs.",DATA!C15*'MDM VI To VIII'!F15)," ") -> Rs.0 | I15: =F15*DATA!C15 -> 0
C16: =C15+1 -> 2010-10-03 | D16: 2010-10-03 | E16: =DATA!H7 -> 125 | F16: 125 | G16: =IF(F16>0,CONCATENATE("Rs.",DATA!C15)," ") -> Rs. | H16: =IF(F16>0,CONCATENATE(,"Rs.",DATA!C15*'MDM VI To VIII'!F16)," ") -> Rs.0 | I16: =F16*DATA!C15 -> 0
C17: 2010-10-04 | D17: 2010-10-04 | E17: =DATA!H8 -> 125 | F17: 125 | G17: =IF(F17>0,CONCATENATE("Rs.",DATA!C15)," ") -> Rs. | H17: =IF(F17>0,CONCATENATE(,"Rs.",DATA!C15*'MDM VI To VIII'!F17)," ") -> Rs.0 | I17: =F17*DATA!C15 -> 0
C18: 2010-10-05 | D18: 2010-10-05 | E18: =DATA!H9 -> 125 | F18: 125 | G18: =IF(F18>0,CONCATENATE("Rs.",DATA!C15)," ") -> Rs. | H18: =IF(F18>0,CONCATENATE(,"Rs.",DATA!C15*'MDM VI To VIII'!F18)," ") -> Rs.0 | I18: =F18*DATA!C15 -> 0
C19: 2010-10-06 | D19: 2010-10-06 | E19: =DATA!H10 -> 125 | F19: 125 | G19: =IF(F19>0,CONCATENATE("Rs.",DATA!C15)," ") -> Rs. | H19: =IF(F19>0,CONCATENATE(,"Rs.",DATA!C15*'MDM VI To VIII'!F19)," ") -> Rs.0 | I19: =F19*DATA!C15 -> 0
C20: 2010-10-07 | D20: 2010-10-07 | E20: =DATA!H11 -> 125 | F20: 125 | G20: =IF(F20>0,CONCATENATE("Rs.",DATA!C15)," ") -> Rs. | H20: =IF(F20>0,CONCATENATE(,"Rs.",DATA!C15*'MDM VI To VIII'!F20)," ") -> Rs.0 | I20: =F20*DATA!C15 -> 0
C21: 2010-10-08 | D21: 2010-10-08 | E21: =DATA!H12 -> 125 | F21: 125 | G21: =IF(F21>0,CONCATENATE("Rs.",DATA!C15)," ") -> Rs. | H21: =IF(F21>0,CONCATENATE(,"Rs.",DATA!C15*'MDM VI To VIII'!F21)," ") -> Rs.0 | I21: =F21*DATA!C15 -> 0
C22: 2010-10-09 | D22: 2010-10-09 | E22: =DATA!H13 -> 125 | F22: 125 | G22: =IF(F22>0,CONCATENATE("Rs.",DATA!C15)," ") -> Rs. | H22: =IF(F22>0,CONCATENATE(,"Rs.",DATA!C15*'MDM VI To VIII'!F22)," ") -> Rs.0 | I22: =F22*DATA!C15 -> 0
C23: 2010-10-10 | D23: 2010-10-10 | E23: =DATA!H14 -> 125 | F23: 125 | G23: =IF(F23>0,CONCATENATE("Rs.",DATA!C15)," ") -> Rs. | H23: =IF(F23>0,CONCATENATE(,"Rs.",DATA!C15*'MDM VI To VIII'!F23)," ") -> Rs.0 | I23: =F23*DATA!C15 -> 0
C24: 2010-10-11 | D24: 2010-10-11 | E24: =DATA!H15 -> 125 | F24: 125 | G24: =IF(F24>0,CONCATENATE("Rs.",DATA!C15)," ") -> Rs. | H24: =IF(F24>0,CONCATENATE(,"Rs.",DATA!C15*'MDM VI To VIII'!F24)," ") -> Rs.0 | I24: =F24*DATA!C15 -> 0
C25: 2010-10-12 | D25: 2010-10-12 | E25: =DATA!H16 -> 125 | F25: 125 | G25: =IF(F25>0,CONCATENATE("Rs.",DATA!C15)," ") -> Rs. | H25: =IF(F25>0,CONCATENATE(,"Rs.",DATA!C15*'MDM VI To VIII'!F25)," ") -> Rs.0 | I25: =F25*DATA!C15 -> 0
C26: 2010-10-13 | D26: 2010-10-13 | E26: =DATA!H17 -> 125 | F26: 125 | G26: =IF(F26>0,CONCATENATE("Rs.",DATA!C15)," ") -> Rs. | H26: =IF(F26>0,CONCATENATE(,"Rs.",DATA!C15*'MDM VI To VIII'!F26)," ") -> Rs.0 | I26: =F26*DATA!C15 -> 0
C27: 2010-10-14 | D27: 2010-10-14 | E27: =DATA!H18 -> 125 | F27: =IF(D27="Sunday"," ",E27) -> 125 | G27: =IF(F27>0,CONCATENATE("Rs.",DATA!C15)," ") -> Rs. | H27: =IF(F27>0,CONCATENATE(,"Rs.",DATA!C15*'MDM VI To VIII'!F27)," ") -> Rs.0 | I27: =F27*DATA!C15 -> 0
C28: 2010-10-15 | D28: 2010-10-15 | E28: =DATA!H19 -> 125 | F28: 125 | G28: =IF(F28>0,CONCATENATE("Rs.",DATA!C15)," ") -> Rs. | H28: =IF(F28>0,CONCATENATE(,"Rs.",DATA!C15*'MDM VI To VIII'!F28)," ") -> Rs.0 | I28: =F28*DATA!C15 -> 0
C29: 2010-10-16 | D29: 2010-10-16 | E29: =DATA!H20 -> 254 | F29: 254 | G29: =IF(F29>0,CONCATENATE("Rs.",DATA!C15)," ") -> Rs. | H29: =IF(F29>0,CONCATENATE(,"Rs.",DATA!C15*'MDM VI To VIII'!F29)," ") -> Rs.0 | I29: =F29*DATA!C15 -> 0
C30: 2010-10-17 | D30: 2010-10-17 | E30: =DATA!J5 -> 2 | F30: 2 | G30: =IF(F30>0,CONCATENATE("Rs.",DATA!C15)," ") -> Rs. | H30: =IF(F30>0,CONCATENATE(,"Rs.",DATA!C15*'MDM VI To VIII'!F30)," ") -> Rs.0 | I30: =F30*DATA!C15 -> 0
C31: 2010-10-18 | D31: 2010-10-18 | E31: =DATA!J6 -> 2 | F31: 2 | G31: =IF(F31>0,CONCATENATE("Rs.",DATA!C15)," ") -> Rs. | H31: =IF(F31>0,CONCATENATE(,"Rs.",DATA!C15*'MDM VI To VIII'!F31)," ") -> Rs.0 | I31: =F31*DATA!C15 -> 0
C32: 2010-10-19 | D32: 2010-10-19 | E32: =DATA!J7 -> 2 | F32: 2 | G32: =IF(F32>0,CONCATENATE("Rs.",DATA!C15)," ") -> Rs. | H32: =IF(F32>0,CONCATENATE(,"Rs.",DATA!C15*'MDM VI To VIII'!F32)," ") -> Rs.0 | I32: =F32*DATA!C15 -> 0
C33: =C32+1 -> 2010-10-20 | D33: 2010-10-20 | E33: =DATA!J8 -> 2 | F33: 2 | G33: =IF(F33>0,CONCATENATE("Rs.",DATA!C15)," ") -> Rs. | H33: =IF(F33>0,CONCATENATE(,"Rs.",DATA!C15*'MDM VI To VIII'!F33)," ") -> Rs.0 | I33: =F33*DATA!C15 -> 0
C34: 2010-10-21 | D34: 2010-10-21 | E34: =DATA!J9 -> 2 | F34: 2 | G34: =IF(F34>0,CONCATENATE("Rs.",DATA!C15)," ") -> Rs. | H34: =IF(F34>0,CONCATENATE(,"Rs.",DATA!C15*'MDM VI To VIII'!F34)," ") -> Rs.0 | I34: =F34*DATA!C15 -> 0
C35: 2010-10-22 | D35: 2010-10-22 | E35: =DATA!J10 -> 2 | F35: 2 | G35: =IF(F35>0,CONCATENATE("Rs.",DATA!C15)," ") -> Rs. | H35: =IF(F35>0,CONCATENATE(,"Rs.",DATA!C15*'MDM VI To VIII'!F35)," ") -> Rs.0 | I35: =F35*DATA!C15 -> 0
C36: 2010-10-23 | D36: 2010-10-23 | E36: =DATA!J11 -> 2 | F36: 2 | G36: =IF(F36>0,CONCATENATE("Rs.",DATA!C15)," ") -> Rs. | H36: =IF(F36>0,CONCATENATE(,"Rs.",DATA!C15*'MDM VI To VIII'!F36)," ") -> Rs.0 | I36: =F36*DATA!C15 -> 0
C37: 2010-10-24 | D37: 2010-10-24 | E37: =DATA!J12 -> 2 | F37: 2 | G37: =IF(F37>0,CONCATENATE("Rs.",DATA!C15)," ") -> Rs. | H37: =IF(F37>0,CONCATENATE(,"Rs.",DATA!C15*'MDM VI To VIII'!F37)," ") -> Rs.0 | I37: =F37*DATA!C15 -> 0
C38: 2010-10-25 | D38: 2010-10-25 | E38: =DATA!J13 -> 2 | F38: 2 | G38: =IF(F38>0,CONCATENATE("Rs.",DATA!C15)," ") -> Rs. | H38: =IF(F38>0,CONCATENATE(,"Rs.",DATA!C15*'MDM VI To VIII'!F38)," ") -> Rs.0 | I38: =F38*DATA!C15 -> 0
C39: 2010-10-26 | D39: 2010-10-26 | E39: =DATA!J14 -> 2 | F39: 2 | G39: =IF(F39>0,CONCATENATE("Rs.",DATA!C15)," ") -> Rs. | H39: =IF(F39>0,CONCATENATE(,"Rs.",DATA!C15*'MDM VI To VIII'!F39)," ") -> Rs.0 | I39: =F39*DATA!C15 -> 0
C40: 2010-10-27 | D40: 2010-10-27 | E40: =DATA!J15 -> 2 | F40: 2 | G40: =IF(F40>0,CONCATENATE("Rs.",DATA!C15)," ") -> Rs. | H40: =IF(F40>0,CONCATENATE(,"Rs.",DATA!C15*'MDM VI To VIII'!F40)," ") -> Rs.0 | I40: =F40*DATA!C15 -> 0
C41: 2010-10-28 | D41: 2010-10-28 | E41: =DATA!J16 -> 2 | F41: 2 | G41: =IF(F41>0,CONCATENATE("Rs.",DATA!C15)," ") -> Rs. | H41: =IF(F41>0,CONCATENATE(,"Rs.",DATA!C15*'MDM VI To VIII'!F41)," ") -> Rs.0 | I41: =F41*DATA!C15 -> 0
C42: 2010-10-29 | D42: 2010-10-29 | E42: =DATA!J17 -> 2 | F42: 2 | G42: =IF(F42>0,CONCATENATE("Rs.",DATA!C15)," ") -> Rs. | H42: =IF(F42>0,CONCATENATE(,"Rs.",DATA!C15*'MDM VI To VIII'!F42)," ") -> Rs.0 | I42: =F42*DATA!C15 -> 0
C43: 2010-10-30 | D43: 2010-10-30 | E43: =DATA!J18 -> 2 | F43: 2 | G43: =IF(F43>0,CONCATENATE("Rs.",DATA!C15)," ") -> Rs. | H43: =IF(F43>0,CONCATENATE(,"Rs.",DATA!C15*'MDM VI To VIII'!F43)," ") -> Rs.0 | I43: =F43*DATA!C15 -> 0
C44: =IF(DATA!J19>0,C43+1,0) -> 2010-10-31 | D44: 2010-10-31 | E44: =DATA!J19 -> 2 | F44: 2 | G44: =IF(F44>0,CONCATENATE("Rs.",DATA!C15)," ") -> Rs. | H44: =IF(F44>0,CONCATENATE(,"Rs.",DATA!C15*'MDM VI To VIII'!F44)," ") -> Rs.0 | I44: =F44*DATA!C15 -> 0
C45: Total | E45: =SUM(E14:E44) -> 2159 | F45: =SUM(F14:F44) -> 2159 | G45: Total | H45: =CONCATENATE("Rs.",SUM(I14:I44)) -> Rs.0
C47: =CONCATENATE("Opening Balance:",DATA!C12," ","Rice received during Month:",DATA!C13," ","Total rice:",DATA!C12+DATA!C13," ","Utalised:",F45*0.15," ","Balance:",DATA!C12+DATA!C13-F45*0.15) -> Opening Balance:1330.5 Rice received during Month:1500 Total rice:2830.5 Utalised:323.85 Balance:2506.65
C50: Signature of the Chair person /Chairman of the Governing Body of the Aided School | G50: Signature of the authorised person of the Implementing Agency
G54: Signature of the Head Master

Sheet MDM IX To X
B2: =CONCATENATE("DAY-WISE DETAILED VOUCHER FOR SERVING MID-DAY MEAL PROGRAMME FOR THE MONTH OF ") -> DAY-WISE DETAILED VOUCHER FOR SERVING MID-DAY MEAL PROGRAMME FOR THE MONTH OF
B3: =DATA!M97 -> October 2010 | E3: (To be prepared by IA/HM and submit toMPDO)
B5: =CONCATENATE("Name of the Mandal:",DATA!C6) -> Name of the Mandal:Balayapalli | E5: =CONCATENATE("School Name & Place:",DATA!C8) -> School Name & Place:ZPPHS,Balayapalli
B6: =CONCATENATE("Name of the Habitation:",DATA!C7) -> Name of the Habitation:Balayapalli | E6: MDM School Code:
B8: =CONCATENATE("Regular students:",DATA!E9-DATA!E10," ","Hostel Students:",DATA!E10," ","Total Roll:",DATA!E9-DATA!E10+DATA!E10) -> Regular students:307 Hostel Students:73 Total Roll:380
B9: =CONCATENATE("IA Name & Address:",DATA!C11) -> IA Name & Address:B.Polamma
B11: DATE | C11: DAY | D11: Children attended to School | E11: No. of Children Fed | F11: Cost for child | G11: Total amount
D12: XI TO X | E12: XI TO X
B13: =DATA!J97 -> 2010-10-01 | C13: =B13 -> 2010-10-01 | D13: =DATA!M5 -> 254 | E13: =IF(C13="Sunday"," ",D13) -> 254 | F13: =IF(E13>0,CONCATENATE("Rs.",DATA!C15)," ") -> Rs. | G13: =IF(E13>0,CONCATENATE(,"Rs.",DATA!C15*'MDM IX To X'!E13)," ") -> Rs.0 | H13: =E13*DATA!C15 -> 0
B14: =B13+1 -> 2010-10-02 | C14: =B14 -> 2010-10-02 | D14: =DATA!M6 -> 1 | E14: =IF(C14="Sunday"," ",D14) -> 1 | F14: =IF(E14>0,CONCATENATE("Rs.",DATA!C15)," ") -> Rs. | G14: =IF(E14>0,CONCATENATE(,"Rs.",DATA!C15*'MDM IX To X'!E14)," ") -> Rs.0 | H14: =E14*DATA!C15 -> 0
B15: =B14+1 -> 2010-10-03 | C15: 2010-10-03 | D15: =DATA!M7 -> 1 | E15: 1 | F15: =IF(E15>0,CONCATENATE("Rs.",DATA!C15)," ") -> Rs. | G15: =IF(E15>0,CONCATENATE(,"Rs.",DATA!C15*'MDM IX To X'!E15)," ") -> Rs.0 | H15: =E15*DATA!C15 -> 0
B16: 2010-10-04 | C16: 2010-10-04 | D16: =DATA!M8 -> 1 | E16: 1 | F16: =IF(E16>0,CONCATENATE("Rs.",DATA!C15)," ") -> Rs. | G16: =IF(E16>0,CONCATENATE(,"Rs.",DATA!C15*'MDM IX To X'!E16)," ") -> Rs.0 | H16: =E16*DATA!C15 -> 0
B17: 2010-10-05 | C17: 2010-10-05 | D17: =DATA!M9 -> 1 | E17: 1 | F17: =IF(E17>0,CONCATENATE("Rs.",DATA!C15)," ") -> Rs. | G17: =IF(E17>0,CONCATENATE(,"Rs.",DATA!C15*'MDM IX To X'!E17)," ") -> Rs.0 | H17: =E17*DATA!C15 -> 0
B18: 2010-10-06 | C18: 2010-10-06 | D18: =DATA!M10 -> 1 | E18: 1 | F18: =IF(E18>0,CONCATENATE("Rs.",DATA!C15)," ") -> Rs. | G18: =IF(E18>0,CONCATENATE(,"Rs.",DATA!C15*'MDM IX To X'!E18)," ") -> Rs.0 | H18: =E18*DATA!C15 -> 0
B19: 2010-10-07 | C19: 2010-10-07 | D19: =DATA!M11 -> 1 | E19: 1 | F19: =IF(E19>0,CONCATENATE("Rs.",DATA!C15)," ") -> Rs. | G19: =IF(E19>0,CONCATENATE(,"Rs.",DATA!C15*'MDM IX To X'!E19)," ") -> Rs.0 | H19: =E19*DATA!C15 -> 0
B20: 2010-10-08 | C20: 2010-10-08 | D20: =DATA!M12 -> 1 | E20: 1 | F20: =IF(E20>0,CONCATENATE("Rs.",DATA!C15)," ") -> Rs. | G20: =IF(E20>0,CONCATENATE(,"Rs.",DATA!C15*'MDM IX To X'!E20)," ") -> Rs.0 | H20: =E20*DATA!C15 -> 0
B21: 2010-10-09 | C21: 2010-10-09 | D21: =DATA!M13 -> 1 | E21: 1 | F21: =IF(E21>0,CONCATENATE("Rs.",DATA!C15)," ") -> Rs. | G21: =IF(E21>0,CONCATENATE(,"Rs.",DATA!C15*'MDM IX To X'!E21)," ") -> Rs.0 | H21: =E21*DATA!C15 -> 0
B22: 2010-10-10 | C22: 2010-10-10 | D22: =DATA!M14 -> 1 | E22: 1 | F22: =IF(E22>0,CONCATENATE("Rs.",DATA!C15)," ") -> Rs. | G22: =IF(E22>0,CONCATENATE(,"Rs.",DATA!C15*'MDM IX To X'!E22)," ") -> Rs.0 | H22: =E22*DATA!C15 -> 0
B23: 2010-10-11 | C23: 2010-10-11 | D23: =DATA!M15 -> 1 | E23: 1 | F23: =IF(E23>0,CONCATENATE("Rs.",DATA!C15)," ") -> Rs. | G23: =IF(E23>0,CONCATENATE(,"Rs.",DATA!C15*'MDM IX To X'!E23)," ") -> Rs.0 | H23: =E23*DATA!C15 -> 0
B24: 2010-10-12 | C24: 2010-10-12 | D24: =DATA!M16 -> 1 | E24: 1 | F24: =IF(E24>0,CONCATENATE("Rs.",DATA!C15)," ") -> Rs. | G24: =IF(E24>0,CONCATENATE(,"Rs.",DATA!C15*'MDM IX To X'!E24)," ") -> Rs.0 | H24: =E24*DATA!C15 -> 0
B25: 2010-10-13 | C25: 2010-10-13 | D25: =DATA!M17 -> 1 | E25: 1 | F25: =IF(E25>0,CONCATENATE("Rs.",DATA!C15)," ") -> Rs. | G25: =IF(E25>0,CONCATENATE(,"Rs.",DATA!C15*'MDM IX To X'!E25)," ") -> Rs.0 | H25: =E25*DATA!C15 -> 0
B26: 2010-10-14 | C26: 2010-10-14 | D26: =DATA!M18 -> 1 | E26: =IF(C26="Sunday"," ",D26) -> 1 | F26: =IF(E26>0,CONCATENATE("Rs.",DATA!C15)," ") -> Rs. | G26: =IF(E26>0,CONCATENATE(,"Rs.",DATA!C15*'MDM IX To X'!E26)," ") -> Rs.0 | H26: =E26*DATA!C15 -> 0
B27: 2010-10-15 | C27: 2010-10-15 | D27: =DATA!M19 -> 1 | E27: 1 | F27: =IF(E27>0,CONCATENATE("Rs.",DATA!C15)," ") -> Rs. | G27: =IF(E27>0,CONCATENATE(,"Rs.",DATA!C15*'MDM IX To X'!E27)," ") -> Rs.0 | H27: =E27*DATA!C15 -> 0
B28: 2010-10-16 | C28: 2010-10-16 | D28: =DATA!M20 -> 1 | E28: 1 | F28: =IF(E28>0,CONCATENATE("Rs.",DATA!C15)," ") -> Rs. | G28: =IF(E28>0,CONCATENATE(,"Rs.",DATA!C15*'MDM IX To X'!E28)," ") -> Rs.0 | H28: =E28*DATA!C15 -> 0
B29: 2010-10-17 | C29: 2010-10-17 | D29: =DATA!O5 -> 254 | E29: 254 | F29: =IF(E29>0,CONCATENATE("Rs.",DATA!C15)," ") -> Rs. | G29: =IF(E29>0,CONCATENATE(,"Rs.",DATA!C15*'MDM IX To X'!E29)," ") -> Rs.0 | H29: =E29*DATA!C15 -> 0
B30: 2010-10-18 | C30: 2010-10-18 | D30: =DATA!O6 -> 2 | E30: 2 | F30: =IF(E30>0,CONCATENATE("Rs.",DATA!C15)," ") -> Rs. | G30: =IF(E30>0,CONCATENATE(,"Rs.",DATA!C15*'MDM IX To X'!E30)," ") -> Rs.0 | H30: =E30*DATA!C15 -> 0
B31: 2010-10-19 | C31: 2010-10-19 | D31: =DATA!O7 -> 2 | E31: 2 | F31: =IF(E31>0,CONCATENATE("Rs.",DATA!C15)," ") -> Rs. | G31: =IF(E31>0,CONCATENATE(,"Rs.",DATA!C15*'MDM IX To X'!E31)," ") -> Rs.0 | H31: =E31*DATA!C15 -> 0
B32: =B31+1 -> 2010-10-20 | C32: 2010-10-20 | D32: =DATA!O8 -> 2 | E32: 2 | F32: =IF(E32>0,CONCATENATE("Rs.",DATA!C15)," ") -> Rs. | G32: =IF(E32>0,CONCATENATE(,"Rs.",DATA!C15*'MDM IX To X'!E32)," ") -> Rs.0 | H32: =E32*DATA!C15 -> 0
B33: 2010-10-21 | C33: 2010-10-21 | D33: =DATA!O9 -> 2 | E33: 2 | F33: =IF(E33>0,CONCATENATE("Rs.",DATA!C15)," ") -> Rs. | G33: =IF(E33>0,CONCATENATE(,"Rs.",DATA!C15*'MDM IX To X'!E33)," ") -> Rs.0 | H33: =E33*DATA!C15 -> 0
B34: 2010-10-22 | C34: 2010-10-22 | D34: =DATA!O10 -> 2 | E34: 2 | F34: =IF(E34>0,CONCATENATE("Rs.",DATA!C15)," ") -> Rs. | G34: =IF(E34>0,CONCATENATE(,"Rs.",DATA!C15*'MDM IX To X'!E34)," ") -> Rs.0 | H34: =E34*DATA!C15 -> 0
B35: 2010-10-23 | C35: 2010-10-23 | D35: =DATA!O11 -> 2 | E35: 2 | F35: =IF(E35>0,CONCATENATE("Rs.",DATA!C15)," ") -> Rs. | G35: =IF(E35>0,CONCATENATE(,"Rs.",DATA!C15*'MDM IX To X'!E35)," ") -> Rs.0 | H35: =E35*DATA!C15 -> 0
B36: 2010-10-24 | C36: 2010-10-24 | D36: =DATA!O12 -> 2 | E36: 2 | F36: =IF(E36>0,CONCATENATE("Rs.",DATA!C15)," ") -> Rs. | G36: =IF(E36>0,CONCATENATE(,"Rs.",DATA!C15*'MDM IX To X'!E36)," ") -> Rs.0 | H36: =E36*DATA!C15 -> 0
B37: 2010-10-25 | C37: 2010-10-25 | D37: =DATA!O13 -> 2 | E37: 2 | F37: =IF(E37>0,CONCATENATE("Rs.",DATA!C15)," ") -> Rs. | G37: =IF(E37>0,CONCATENATE(,"Rs.",DATA!C15*'MDM IX To X'!E37)," ") -> Rs.0 | H37: =E37*DATA!C15 -> 0
B38: 2010-10-26 | C38: 2010-10-26 | D38: =DATA!O14 -> 2 | E38: 2 | F38: =IF(E38>0,CONCATENATE("Rs.",DATA!C15)," ") -> Rs. | G38: =IF(E38>0,CONCATENATE(,"Rs.",DATA!C15*'MDM IX To X'!E38)," ") -> Rs.0 | H38: =E38*DATA!C15 -> 0
B39: 2010-10-27 | C39: 2010-10-27 | D39: =DATA!O15 -> 2 | E39: 2 | F39: =IF(E39>0,CONCATENATE("Rs.",DATA!C15)," ") -> Rs. | G39: =IF(E39>0,CONCATENATE(,"Rs.",DATA!C15*'MDM IX To X'!E39)," ") -> Rs.0 | H39: =E39*DATA!C15 -> 0
B40: 2010-10-28 | C40: 2010-10-28 | D40: =DATA!O16 -> 2 | E40: 2 | F40: =IF(E40>0,CONCATENATE("Rs.",DATA!C15)," ") -> Rs. | G40: =IF(E40>0,CONCATENATE(,"Rs.",DATA!C15*'MDM IX To X'!E40)," ") -> Rs.0 | H40: =E40*DATA!C15 -> 0
B41: 2010-10-29 | C41: 2010-10-29 | D41: =DATA!O17 -> 2 | E41: 2 | F41: =IF(E41>0,CONCATENATE("Rs.",DATA!C15)," ") -> Rs. | G41: =IF(E41>0,CONCATENATE(,"Rs.",DATA!C15*'MDM IX To X'!E41)," ") -> Rs.0 | H41: =E41*DATA!C15 -> 0
B42: 2010-10-30 | C42: 2010-10-30 | D42: =DATA!O18 -> 2 | E42: 2 | F42: =IF(E42>0,CONCATENATE("Rs.",DATA!C15)," ") -> Rs. | G42: =IF(E42>0,CONCATENATE(,"Rs.",DATA!C15*'MDM IX To X'!E42)," ") -> Rs.0 | H42: =E42*DATA!C15 -> 0
B43: =IF(DATA!J19>0,B42+1,0) -> 2010-10-31 | C43: 2010-10-31 | D43: =DATA!O19 -> 2 | E43: 2 | F43: =IF(E43>0,CONCATENATE("Rs.",DATA!C15)," ") -> Rs. | G43: =IF(E43>0,CONCATENATE(,"Rs.",DATA!C15*'MDM IX To X'!E43)," ") -> Rs.0 | H43: =E43*DATA!C15 -> 0
B44: Total | D44: =SUM(D13:D43) -> 551 | E44: =SUM(E13:E43) -> 551 | F44: Total | G44: =CONCATENATE("Rs.",SUM(H13:H43)) -> Rs.0
B46: =CONCATENATE("Opening Balance:",DATA!C12+DATA!C13-'MDM VI To VIII'!F45*0.15," ","Rice received during Month:",0," ","Total rice:",DATA!C12+DATA!C13-'MDM VI To VIII'!F45*0.15," ","Utalised:",E44*0.15," ","Balance:",DATA!C12+DATA!C13-'MDM VI To VIII'!F45*0.15-E44*0.15) -> Opening Balance:2506.65 Rice received during Month:0 Total rice:2506.65 Utalised:82.65 Balance:2424
B49: Signature of the Chair person /Chairman of the Governing Body of the Aided School | F49: Signature of the authorised person of the Implementing Agency
F51: Signature of the Head Master

Sheet MDM VI to X
B2: DAY-WISE DETAILED VOUCHER FOR SERVING MID-DAY MEAL PROGRAMME FOR THE MONTH OF
B3: =DATA!M97 -> October 2010 | G3: (To be prepared by IA/HM and submit toMPDO)
B5: =CONCATENATE("Name of the Mandal:",DATA!C6) -> Name of the Mandal:Balayapalli | G5: =CONCATENATE("School Name & Place:",DATA!C8) -> School Name & Place:ZPPHS,Balayapalli
B6: =CONCATENATE("Name of the Habitation:",DATA!C7) -> Name of the Habitation:Balayapalli | G6: MDM School Code:
B8: =CONCATENATE("Regular students:",DATA!E9-DATA!E10," ","Hostel Students:",DATA!E10," ","Total Roll:",DATA!E9-DATA!E10+DATA!E10) -> Regular students:307 Hostel Students:73 Total Roll:380
B9: =CONCATENATE("IA Name & Address:",DATA!C11) -> IA Name & Address:B.Polamma
B11: DATE | C11: DAY | D11: Children attended to School | G11: No. of Children Fed | J11: Cost for child | K11: Total amount
D12: VI TO VII | E12: VIII TO X | F12: Total | G12: VI TO VII | H12: VIII TO X | I12: Total
B13: =DATA!J97 -> 2010-10-01 | C13: =B13 -> 2010-10-01 | D13: =DATA!H5 -> 125 | E13: =DATA!M5 -> 254 | F13: =IF(D13=0,0,D13+E13) -> 379 | G13: =IF(C13="Sunday"," ",D13) -> 125 | H13: =IF(D13="Sunday"," ",E13) -> 254 | I13: =IF(G13=0,0,G13+H13) -> 379 | J13: =IF(I13=0," ",DATA!C15) -> 0 | K13: =IF(I13=0," ",I13*'MDM VI to X'!J13) -> 0
B14: =B13+1 -> 2010-10-02 | C14: =B14 -> 2010-10-02 | D14: =DATA!H6 -> 125 | E14: =DATA!M6 -> 1 | F14: 126 | G14: =IF(C14="Sunday"," ",D14) -> 125 | H14: =IF(D14="Sunday"," ",E14) -> 1 | I14: 126 | J14: =IF(I14=0," ",DATA!C15) -> 0 | K14: =IF(I14=0," ",I14*'MDM VI to X'!J14) -> 0
B15: =B14+1 -> 2010-10-03 | C15: 2010-10-03 | D15: =DATA!H7 -> 125 | E15: =DATA!M7 -> 1 | F15: 126 | G15: 125 | H15: 1 | I15: 126 | J15: =IF(I15=0," ",DATA!C15) -> 0 | K15: =IF(I15=0," ",I15*'MDM VI to X'!J15) -> 0
B16: 2010-10-04 | C16: 2010-10-04 | D16: =DATA!H8 -> 125 | E16: =DATA!M8 -> 1 | F16: 126 | G16: 125 | H16: 1 | I16: =IF(G16=0,0,G16+H16) -> 126 | J16: =IF(I16=0," ",DATA!C15) -> 0 | K16: =IF(I16=0," ",I16*'MDM VI to X'!J16) -> 0
B17: 2010-10-05 | C17: 2010-10-05 | D17: =DATA!H9 -> 125 | E17: =DATA!M9 -> 1 | F17: 126 | G17: 125 | H17: 1 | I17: 126 | J17: =IF(I17=0," ",DATA!C15) -> 0 | K17: =IF(I17=0," ",I17*'MDM VI to X'!J17) -> 0
B18: 2010-10-06 | C18: 2010-10-06 | D18: =DATA!H10 -> 125 | E18: =DATA!M10 -> 1 | F18: 126 | G18: 125 | H18: 1 | I18: 126 | J18: =IF(I18=0," ",DATA!C15) -> 0 | K18: =IF(I18=0," ",I18*'MDM VI to X'!J18) -> 0
B19: 2010-10-07 | C19: 2010-10-07 | D19: =DATA!H11 -> 125 | E19: =DATA!M11 -> 1 | F19: 126 | G19: 125 | H19: 1 | I19: 126 | J19: =IF(I19=0," ",DATA!C15) -> 0 | K19: =IF(I19=0," ",I19*'MDM VI to X'!J19) -> 0
B20: 2010-10-08 | C20: 2010-10-08 | D20: =DATA!H12 -> 125 | E20: =DATA!M12 -> 1 | F20: 126 | G20: 125 | H20: 1 | I20: 126 | J20: =IF(I20=0," ",DATA!C15) -> 0 | K20: =IF(I20=0," ",I20*'MDM VI to X'!J20) -> 0
B21: 2010-10-09 | C21: 2010-10-09 | D21: =DATA!H13 -> 125 | E21: =DATA!M13 -> 1 | F21: 126 | G21: 125 | H21: 1 | I21: 126 | J21: =IF(I21=0," ",DATA!C15) -> 0 | K21: =IF(I21=0," ",I21*'MDM VI to X'!J21) -> 0
B22: 2010-10-10 | C22: 2010-10-10 | D22: =DATA!H14 -> 125 | E22: =DATA!M14 -> 1 | F22: 126 | G22: 125 | H22: 1 | I22: 126 | J22: =IF(I22=0," ",DATA!C15) -> 0 | K22: =IF(I22=0," ",I22*'MDM VI to X'!J22) -> 0
B23: 2010-10-11 | C23: 2010-10-11 | D23: =DATA!H15 -> 125 | E23: =DATA!M15 -> 1 | F23: 126 | G23: 125 | H23: 1 | I23: 126 | J23: =IF(I23=0," ",DATA!C15) -> 0 | K23: =IF(I23=0," ",I23*'MDM VI to X'!J23) -> 0
B24: 2010-10-12 | C24: 2010-10-12 | D24: =DATA!H16 -> 125 | E24: =DATA!M16 -> 1 | F24: 126 | G24: 125 | H24: 1 | I24: 126 | J24: =IF(I24=0," ",DATA!C15) -> 0 | K24: =IF(I24=0," ",I24*'MDM VI to X'!J24) -> 0
B25: 2010-10-13 | C25: 2010-10-13 | D25: =DATA!H17 -> 125 | E25: =DATA!M17 -> 1 | F25: 126 | G25: 125 | H25: 1 | I25: 126 | J25: =IF(I25=0," ",DATA!C15) -> 0 | K25: =IF(I25=0," ",I25*'MDM VI to X'!J25) -> 0
B26: 2010-10-14 | C26: 2010-10-14 | D26: =DATA!H18 -> 125 | E26: =DATA!M18 -> 1 | F26: 126 | G26: 125 | H26: 1 | I26: 126 | J26: =IF(I26=0," ",DATA!C15) -> 0 | K26: =IF(I26=0," ",I26*'MDM VI to X'!J26) -> 0
B27: 2010-10-15 | C27: 2010-10-15 | D27: =DATA!H19 -> 125 | E27: =DATA!M19 -> 1 | F27: 126 | G27: 125 | H27: 1 | I27: 126 | J27: =IF(I27=0," ",DATA!C15) -> 0 | K27: =IF(I27=0," ",I27*'MDM VI to X'!J27) -> 0
B28: 2010-10-16 | C28: 2010-10-16 | D28: =DATA!H20 -> 254 | E28: =DATA!M20 -> 1 | F28: 255 | G28: 254 | H28: 1 | I28: 255 | J28: =IF(I28=0," ",DATA!C15) -> 0 | K28: =IF(I28=0," ",I28*'MDM VI to X'!J28) -> 0
B29: 2010-10-17 | C29: 2010-10-17 | D29: =DATA!J5 -> 2 | E29: =DATA!O5 -> 254 | F29: 256 | G29: 2 | H29: 254 | I29: 256 | J29: =IF(I29=0," ",DATA!C15) -> 0 | K29: =IF(I29=0," ",I29*'MDM VI to X'!J29) -> 0
B30: 2010-10-18 | C30: 2010-10-18 | D30: =DATA!J6 -> 2 | E30: =DATA!O6 -> 2 | F30: 4 | G30: 2 | H30: 2 | I30: 4 | J30: =IF(I30=0," ",DATA!C15) -> 0 | K30: =IF(I30=0," ",I30*'MDM VI to X'!J30) -> 0
B31: 2010-10-19 | C31: 2010-10-19 | D31: =DATA!J7 -> 2 | E31: =DATA!O7 -> 2 | F31: 4 | G31: 2 | H31: 2 | I31: 4 | J31: =IF(I31=0," ",DATA!C15) -> 0 | K31: =IF(I31=0," ",I31*'MDM VI to X'!J31) -> 0
B32: =B31+1 -> 2010-10-20 | C32: 2010-10-20 | D32: =DATA!J8 -> 2 | E32: =DATA!O8 -> 2 | F32: 4 | G32: 2 | H32: 2 | I32: 4 | J32: =IF(I32=0," ",DATA!C15) -> 0 | K32: =IF(I32=0," ",I32*'MDM VI to X'!J32) -> 0
B33: 2010-10-21 | C33: 2010-10-21 | D33: =DATA!J9 -> 2 | E33: =DATA!O9 -> 2 | F33: 4 | G33: 2 | H33: 2 | I33: 4 | J33: =IF(I33=0," ",DATA!C15) -> 0 | K33: =IF(I33=0," ",I33*'MDM VI to X'!J33) -> 0
B34: 2010-10-22 | C34: 2010-10-22 | D34: =DATA!J10 -> 2 | E34: =DATA!O10 -> 2 | F34: 4 | G34: 2 | H34: 2 | I34: 4 | J34: =IF(I34=0," ",DATA!C15) -> 0 | K34: =IF(I34=0," ",I34*'MDM VI to X'!J34) -> 0
B35: 2010-10-23 | C35: 2010-10-23 | D35: =DATA!J11 -> 2 | E35: =DATA!O11 -> 2 | F35: 4 | G35: 2 | H35: 2 | I35: 4 | J35: =IF(I35=0," ",DATA!C15) -> 0 | K35: =IF(I35=0," ",I35*'MDM VI to X'!J35) -> 0
B36: 2010-10-24 | C36: 2010-10-24 | D36: =DATA!J12 -> 2 | E36: =DATA!O12 -> 2 | F36: 4 | G36: 2 | H36: 2 | I36: 4 | J36: =IF(I36=0," ",DATA!C15) -> 0 | K36: =IF(I36=0," ",I36*'MDM VI to X'!J36) -> 0
B37: 2010-10-25 | C37: 2010-10-25 | D37: =DATA!J13 -> 2 | E37: =DATA!O13 -> 2 | F37: 4 | G37: 2 | H37: 2 | I37: 4 | J37: =IF(I37=0," ",DATA!C15) -> 0 | K37: =IF(I37=0," ",I37*'MDM VI to X'!J37) -> 0
B38: 2010-10-26 | C38: 2010-10-26 | D38: =DATA!J14 -> 2 | E38: =DATA!O14 -> 2 | F38: 4 | G38: 2 | H38: 2 | I38: 4 | J38: =IF(I38=0," ",DATA!C15) -> 0 | K38: =IF(I38=0," ",I38*'MDM VI to X'!J38) -> 0
B39: 2010-10-27 | C39: 2010-10-27 | D39: =DATA!J15 -> 2 | E39: =DATA!O15 -> 2 | F39: 4 | G39: 2 | H39: 2 | I39: 4 | J39: =IF(I39=0," ",DATA!C15) -> 0 | K39: =IF(I39=0," ",I39*'MDM VI to X'!J39) -> 0
B40: 2010-10-28 | C40: 2010-10-28 | D40: =DATA!J16 -> 2 | E40: =DATA!O16 -> 2 | F40: 4 | G40: 2 | H40: 2 | I40: 4 | J40: =IF(I40=0," ",DATA!C15) -> 0 | K40: =IF(I40=0," ",I40*'MDM VI to X'!J40) -> 0
B41: 2010-10-29 | C41: 2010-10-29 | D41: =DATA!J17 -> 2 | E41: =DATA!O17 -> 2 | F41: 4 | G41: 2 | H41: 2 | I41: 4 | J41: =IF(I41=0," ",DATA!C15) -> 0 | K41: =IF(I41=0," ",I41*'MDM VI to X'!J41) -> 0
B42: 2010-10-30 | C42: 2010-10-30 | D42: =DATA!J18 -> 2 | E42: =DATA!O18 -> 2 | F42: 4 | G42: 2 | H42: 2 | I42: 4 | J42: =IF(I42=0," ",DATA!C15) -> 0 | K42: =IF(I42=0," ",I42*'MDM VI to X'!J42) -> 0
B43: =IF(DATA!J19>0,B42+1,0) -> 2010-10-31 | C43: 2010-10-31 | D43: =DATA!J19 -> 2 | E43: =DATA!O19 -> 2 | F43: 4 | G43: 2 | H43: 2 | I43: 4 | J43: =IF(I43=0," ",DATA!C15) -> 0 | K43: =IF(I43=0," ",I43*'MDM VI to X'!J43) -> 0
B44: Total | D44: =SUM(D13:D43) -> 2159 | E44: =SUM(E13:E43) -> 551 | F44: =SUM(F13:F43) -> 2710 | G44: 2159 | H44: 551 | I44: 2710 | J44: Total | K44: 0
B45: Rice Particulars in KG's | N45: ='MDM VI To VIII'!H45 -> Rs.0 | P45: VI To VIII
B46: =CONCATENATE("Opening Balance:",DATA!C12," ","Rice received during Month:",DATA!C13," ","Total rice:",DATA!C12+DATA!C13," ","Utalised:",I44*0.15," ","Balance:",DATA!C12+DATA!C13-I44*0.15) -> Opening Balance:1330.5 Rice received during Month:1500 Total rice:2830.5 Utalised:406.5 Balance:2424 | N46: ='MDM IX To X'!G44 -> Rs.0 | P46: IX To X
N47: ="Rs."&'MDM VI To VIII'!F45*DATA!C15+'MDM IX To X'!E44*DATA!C15 -> Rs.0 | P47: Total
B49: Signature of the Chair person /Chairman of the Governing Body of the Aided School | H49: Signature of the authorised person of the Implementing Agency
H52: Signature of the Head Master

Sheet Register VI to VIII & IX To X
A1: =DATA!M97 -> October 2010
A2: Date | B2: VI To VIII | C2: IX TO X | D2: Total | E2: Opening balance | F2: Rice Received From FP | G2: Total Rice | H2: VI To VIII | I2: IX TO X | J2: Total Consumption | K2: Closing Balance | L2: VI To VIII Amount | M2: IX to X Amount | N2: Total Amount
A3: ='MDM VI to X'!B13 -> 2010-10-01 | B3: ='MDM VI To VIII'!E14 -> 125 | C3: =DATA!M5 -> 254 | D3: =C3+B3 -> 379 | E3: =DATA!C12 -> 1330.5 | F3: =IF(DATA!$E$13=DAY(A3),DATA!C13,0) -> 0 | G3: =E3+F3 -> 1330.5 | H3: =B3*0.15 -> 18.75 | I3: =C3*0.15 -> 38.1 | J3: =H3+I3 -> 56.85 | K3: =G3-J3 -> 1273.65 | L3: =B3*DATA!C15 -> 0 | M3: =C3*DATA!C15 -> 0 | N3: =L3+M3 -> 0
A4: ='MDM VI to X'!B14 -> 2010-10-02 | B4: ='MDM VI To VIII'!E15 -> 125 | C4: =DATA!M6 -> 1 | D4: =C4+B4 -> 126 | E4: =K3 -> 1273.65 | F4: =IF(DATA!$E$13=DAY(A4),DATA!C13,0) -> 0 | G4: =E4+F4 -> 1273.65 | H4: =B4*0.15 -> 18.75 | I4: 0.15 | J4: =H4+I4 -> 18.9 | K4: =G4-J4 -> 1254.75 | L4: =B4*DATA!C15 -> 0 | M4: =C4*DATA!C15 -> 0 | N4: =L4+M4 -> 0
A5: ='MDM VI to X'!B15 -> 2010-10-03 | B5: ='MDM VI To VIII'!E16 -> 125 | C5: =DATA!M7 -> 1 | D5: 126 | E5: =K4 -> 1254.75 | F5: =IF(DATA!$E$13=DAY(A5),DATA!C13,0) -> 0 | G5: 1254.75 | H5: 18.75 | I5: 0.15 | J5: 18.9 | K5: 1235.85 | L5: =B5*DATA!C15 -> 0 | M5: =C5*DATA!C15 -> 0 | N5: 0
A6: ='MDM VI to X'!B16 -> 2010-10-04 | B6: ='MDM VI To VIII'!E17 -> 125 | C6: =DATA!M8 -> 1 | D6: 126 | E6: 1235.85 | F6: =IF(DATA!$E$13=DAY(A6),DATA!C13,0) -> 0 | G6: 1235.85 | H6: 18.75 | I6: 0.15 | J6: 18.9 | K6: 1216.95 | L6: =B6*DATA!C15 -> 0 | M6: =C6*DATA!C15 -> 0 | N6: 0
A7: ='MDM VI to X'!B17 -> 2010-10-05 | B7: ='MDM VI To VIII'!E18 -> 125 | C7: =DATA!M9 -> 1 | D7: 126 | E7: 1216.95 | F7: =IF(DATA!$E$13=DAY(A7),DATA!C13,0) -> 1500 | G7: 2716.95 | H7: 18.75 | I7: 0.15 | J7: 18.9 | K7: 2698.05 | L7: =B7*DATA!C15 -> 0 | M7: =C7*DATA!C15 -> 0 | N7: 0
A8: ='MDM VI to X'!B18 -> 2010-10-06 | B8: ='MDM VI To VIII'!E19 -> 125 | C8: =DATA!M10 -> 1 | D8: 126 | E8: 2698.05 | G8: 2698.05 | H8: 18.75 | I8: 0.15 | J8: 18.9 | K8: 2679.15 | L8: =B8*DATA!C15 -> 0 | M8: =C8*DATA!C15 -> 0 | N8: 0
A9: ='MDM VI to X'!B19 -> 2010-10-07 | B9: ='MDM VI To VIII'!E20 -> 125 | C9: =DATA!M11 -> 1 | D9: 126 | E9: 2679.15 | F9: =IF(DATA!$E$13=DAY(A9),DATA!C13,0) -> 0 | G9: 2679.15 | H9: 18.75 | I9: 0.15 | J9: 18.9 | K9: 2660.25 | L9: =B9*DATA!C15 -> 0 | M9: =C9*DATA!C15 -> 0 | N9: 0
A10: ='MDM VI to X'!B20 -> 2010-10-08 | B10: ='MDM VI To VIII'!E21 -> 125 | C10: =DATA!M12 -> 1 | D10: 126 | E10: 2660.25 | F10: =IF(DATA!$E$13=DAY(A10),DATA!C13,0) -> 0 | G10: 2660.25 | H10: 18.75 | I10: 0.15 | J10: 18.9 | K10: 2641.35 | L10: =B10*DATA!C15 -> 0 | M10: =C10*DATA!C15 -> 0 | N10: 0
A11: ='MDM VI to X'!B21 -> 2010-10-09 | B11: ='MDM VI To VIII'!E22 -> 125 | C11: =DATA!M13 -> 1 | D11: 126 | E11: 2641.35 | F11: =IF(DATA!$E$13=DAY(A11),DATA!C13,0) -> 0 | G11: 2641.35 | H11: 18.75 | I11: 0.15 | J11: 18.9 | K11: 2622.45 | L11: =B11*DATA!C15 -> 0 | M11: =C11*DATA!C15 -> 0 | N11: 0
A12: ='MDM VI to X'!B22 -> 2010-10-10 | B12: ='MDM VI To VIII'!E23 -> 125 | C12: =DATA!M14 -> 1 | D12: 126 | E12: 2622.45 | F12: =IF(DATA!$E$13=DAY(A12),DATA!C13,0) -> 0 | G12: 2622.45 | H12: 18.75 | I12: 0.15 | J12: 18.9 | K12: 2603.55 | L12: =B12*DATA!C15 -> 0 | M12: =C12*DATA!C15 -> 0 | N12: 0
A13: ='MDM VI to X'!B23 -> 2010-10-11 | B13: ='MDM VI To VIII'!E24 -> 125 | C13: =DATA!M15 -> 1 | D13: 126 | E13: 2603.55 | F13: =IF(DATA!$E$13=DAY(A13),DATA!C13,0) -> 0 | G13: 2603.55 | H13: 18.75 | I13: 0.15 | J13: 18.9 | K13: 2584.65 | L13: =B13*DATA!C15 -> 0 | M13: =C13*DATA!C15 -> 0 | N13: 0
A14: ='MDM VI to X'!B24 -> 2010-10-12 | B14: ='MDM VI To VIII'!E25 -> 125 | C14: =DATA!M16 -> 1 | D14: 126 | E14: 2584.65 | F14: =IF(DATA!$E$13=DAY(A14),DATA!C13,0) -> 0 | G14: 2584.65 | H14: 18.75 | I14: 0.15 | J14: 18.9 | K14: 2565.75 | L14: =B14*DATA!C15 -> 0 | M14: =C14*DATA!C15 -> 0 | N14: 0
A15: ='MDM VI to X'!B25 -> 2010-10-13 | B15: ='MDM VI To VIII'!E26 -> 125 | C15: =DATA!M17 -> 1 | D15: 126 | E15: 2565.75 | F15: =IF(DATA!$E$13=DAY(A15),DATA!C13,0) -> 0 | G15: 2565.75 | H15: 18.75 | I15: 0.15 | J15: 18.9 | K15: 2546.85 | L15: =B15*DATA!C15 -> 0 | M15: =C15*DATA!C15 -> 0 | N15: 0
A16: ='MDM VI to X'!B26 -> 2010-10-14 | B16: ='MDM VI To VIII'!E27 -> 125 | C16: =DATA!M18 -> 1 | D16: 126 | E16: 2546.85 | F16: =IF(DATA!$E$13=DAY(A16),DATA!C13,0) -> 0 | G16: 2546.85 | H16: 18.75 | I16: 0.15 | J16: 18.9 | K16: 2527.95 | L16: =B16*DATA!C15 -> 0 | M16: =C16*DATA!C15 -> 0 | N16: 0
A17: ='MDM VI to X'!B27 -> 2010-10-15 | B17: ='MDM VI To VIII'!E28 -> 125 | C17: =DATA!M19 -> 1 | D17: 126 | E17: 2527.95 | F17: =IF(DATA!$E$13=DAY(A17),DATA!C13,0) -> 0 | G17: 2527.95 | H17: 18.75 | I17: 0.15 | J17: 18.9 | K17: 2509.05 | L17: =B17*DATA!C15 -> 0 | M17: =C17*DATA!C15 -> 0 | N17: 0
A18: ='MDM VI to X'!B28 -> 2010-10-16 | B18: ='MDM VI To VIII'!E29 -> 254 | C18: =DATA!M20 -> 1 | D18: 255 | E18: 2509.05 | F18: =IF(DATA!$E$13=DAY(A18),DATA!C13,0) -> 0 | G18: 2509.05 | H18: 38.1 | I18: 0.15 | J18: 38.25 | K18: 2470.8 | L18: =B18*DATA!C15 -> 0 | M18: =C18*DATA!C15 -> 0 | N18: 0
A19: ='MDM VI to X'!B29 -> 2010-10-17 | B19: ='MDM VI To VIII'!E30 -> 2 | C19: =DATA!O5 -> 254 | D19: 256 | E19: 2470.8 | F19: =IF(DATA!$E$13=DAY(A19),DATA!C13,0) -> 0 | G19: 2470.8 | H19: 0.3 | I19: 38.1 | J19: 38.4 | K19: 2432.4 | L19: =B19*DATA!C15 -> 0 | M19: =C19*DATA!C15 -> 0 | N19: 0
A20: ='MDM VI to X'!B30 -> 2010-10-18 | B20: ='MDM VI To VIII'!E31 -> 2 | C20: =DATA!O6 -> 2 | D20: 4 | E20: 2432.4 | G20: 2432.4 | H20: =B20*0.15 -> 0.3 | I20: 0.3 | J20: 0.6 | K20: 2431.8 | L20: =B20*DATA!C15 -> 0 | M20: =C20*DATA!C15 -> 0 | N20: 0
A21: ='MDM VI to X'!B31 -> 2010-10-19 | B21: ='MDM VI To VIII'!E32 -> 2 | C21: =DATA!O7 -> 2 | D21: 4 | E21: 2431.8 | F21: =IF(DATA!$E$13=DAY(A21),DATA!C13,0) -> 0 | G21: 2431.8 | H21: 0.3 | I21: 0.3 | J21: 0.6 | K21: 2431.2 | L21: =B21*DATA!C15 -> 0 | M21: =C21*DATA!C15 -> 0 | N21: 0
A22: ='MDM VI to X'!B32 -> 2010-10-20 | B22: ='MDM VI To VIII'!E33 -> 2 | C22: =DATA!O8 -> 2 | D22: 4 | E22: 2431.2 | F22: =IF(DATA!$E$13=DAY(A22),DATA!C13,0) -> 0 | G22: 2431.2 | H22: 0.3 | I22: 0.3 | J22: 0.6 | K22: 2430.6 | L22: =B22*DATA!C15 -> 0 | M22: =C22*DATA!C15 -> 0 | N22: 0
A23: ='MDM VI to X'!B33 -> 2010-10-21 | B23: ='MDM VI To VIII'!E34 -> 2 | C23: =DATA!O9 -> 2 | D23: 4 | E23: 2430.6 | F23: =IF(DATA!$E$13=DAY(A23),DATA!C13,0) -> 0 | G23: 2430.6 | H23: 0.3 | I23: 0.3 | J23: 0.6 | K23: 2430 | L23: =B23*DATA!C15 -> 0 | M23: =C23*DATA!C15 -> 0 | N23: 0
A24: ='MDM VI to X'!B34 -> 2010-10-22 | B24: ='MDM VI To VIII'!E35 -> 2 | C24: =DATA!O10 -> 2 | D24: 4 | E24: 2430 | F24: =IF(DATA!$E$13=DAY(A24),DATA!C13,0) -> 0 | G24: 2430 | H24: 0.3 | I24: 0.3 | J24: 0.6 | K24: 2429.4 | L24: =B24*DATA!C15 -> 0 | M24: =C24*DATA!C15 -> 0 | N24: 0
A25: ='MDM VI to X'!B35 -> 2010-10-23 | B25: ='MDM VI To VIII'!E36 -> 2 | C25: =DATA!O11 -> 2 | D25: 4 | E25: 2429.4 | F25: =IF(DATA!$E$13=DAY(A25),DATA!C13,0) -> 0 | G25: 2429.4 | H25: 0.3 | I25: 0.3 | J25: 0.6 | K25: 2428.8 | L25: =B25*DATA!C15 -> 0 | M25: =C25*DATA!C15 -> 0 | N25: 0
A26: ='MDM VI to X'!B36 -> 2010-10-24 | B26: ='MDM VI To VIII'!E37 -> 2 | C26: =DATA!O12 -> 2 | D26: 4 | E26: 2428.8 | F26: =IF(DATA!$E$13=DAY(A26),DATA!C13,0) -> 0 | G26: 2428.8 | H26: 0.3 | I26: 0.3 | J26: 0.6 | K26: 2428.2 | L26: =B26*DATA!C15 -> 0 | M26: =C26*DATA!C15 -> 0 | N26: 0
A27: ='MDM VI to X'!B37 -> 2010-10-25 | B27: ='MDM VI To VIII'!E38 -> 2 | C27: =DATA!O13 -> 2 | D27: 4 | E27: 2428.2 | F27: =IF(DATA!$E$13=DAY(A27),DATA!C13,0) -> 0 | G27: 2428.2 | H27: 0.3 | I27: 0.3 | J27: 0.6 | K27: 2427.6 | L27: =B27*DATA!C15 -> 0 | M27: =C27*DATA!C15 -> 0 | N27: 0
A28: ='MDM VI to X'!B38 -> 2010-10-26 | B28: ='MDM VI To VIII'!E39 -> 2 | C28: =DATA!O14 -> 2 | D28: 4 | E28: 2427.6 | F28: =IF(DATA!$E$13=DAY(A28),DATA!C13,0) -> 0 | G28: 2427.6 | H28: 0.3 | I28: 0.3 | J28: 0.6 | K28: 2427 | L28: =B28*DATA!C15 -> 0 | M28: =C28*DATA!C15 -> 0 | N28: 0
A29: ='MDM VI to X'!B39 -> 2010-10-27 | B29: ='MDM VI To VIII'!E40 -> 2 | C29: =DATA!O15 -> 2 | D29: 4 | E29: 2427 | F29: =IF(DATA!$E$13=DAY(A29),DATA!C13,0) -> 0 | G29: 2427 | H29: 0.3 | I29: 0.3 | J29: 0.6 | K29: 2426.4 | L29: =B29*DATA!C15 -> 0 | M29: =C29*DATA!C15 -> 0 | N29: 0
A30: ='MDM VI to X'!B40 -> 2010-10-28 | B30: ='MDM VI To VIII'!E41 -> 2 | C30: =DATA!O16 -> 2 | D30: 4 | E30: 2426.4 | F30: =IF(DATA!$E$13=DAY(A30),DATA!C13,0) -> 0 | G30: 2426.4 | H30: 0.3 | I30: 0.3 | J30: 0.6 | K30: 2425.8 | L30: =B30*DATA!C15 -> 0 | M30: =C30*DATA!C15 -> 0 | N30: 0
A31: ='MDM VI to X'!B41 -> 2010-10-29 | B31: ='MDM VI To VIII'!E42 -> 2 | C31: =DATA!O17 -> 2 | D31: 4 | E31: 2425.8 | F31: =IF(DATA!$E$13=DAY(A31),DATA!C13,0) -> 0 | G31: 2425.8 | H31: 0.3 | I31: 0.3 | J31: 0.6 | K31: 2425.2 | L31: =B31*DATA!C15 -> 0 | M31: =C31*DATA!C15 -> 0 | N31: 0
A32: ='MDM VI to X'!B42 -> 2010-10-30 | B32: ='MDM VI To VIII'!E43 -> 2 | C32: =DATA!O18 -> 2 | D32: 4 | E32: 2425.2 | F32: =IF(DATA!$E$13=DAY(A32),DATA!C13,0) -> 0 | G32: 2425.2 | H32: 0.3 | I32: 0.3 | J32: 0.6 | K32: 2424.6 | L32: =B32*DATA!C15 -> 0 | M32: =C32*DATA!C15 -> 0 | N32: 0
A33: ='MDM VI to X'!B43 -> 2010-10-31 | B33: ='MDM VI To VIII'!E44 -> 2 | C33: =DATA!O19 -> 2 | D33: =C33+B33 -> 4 | E33: =IF(B33>0,K32,0) -> 2424.6 | F33: =IF(DATA!$E$13=DAY(A33),DATA!C13,0) -> 0 | G33: =E33+F33 -> 2424.6 | H33: =B33*0.15 -> 0.3 | I33: =C33*0.15 -> 0.3 | J33: =H33+I33 -> 0.6 | K33: =G33-J33 -> 2424 | L33: =B33*DATA!C15 -> 0 | M33: =C33*DATA!C15 -> 0 | N33: =L33+M33 -> 0
A34: Total | B34: =SUM(B3:B33) -> 2159 | C34: 551 | D34: 2710 | E34: 71420.55 | F34: 1500 | G34: 72920.55 | H34: 323.85 | I34: 82.65 | J34: 406.5 | K34: 72514.05 | L34: 0 | M34: 0 | N34: 0

Sheet register
A1: MID-DAY MEAL PROGRAM | O1: DAILY WATCH REGISTER
A2: Date | B2: Day | C2: Number on Roll (Including Hostlers) | F2: Number on Hostlers | I2: Number Attanded | L2: Number Already taken MDM | O2: Rice | V2: Conversion cost payaable to IMA as per the number actually MDM taken | Z2: Signature Of Head Master | AA2: Signature Of the IMA | AB2: Signature Of Visiting officer /Parents/Others | AC2: Remarks(Adverse events if any)
C3: VI To VIII Classes | D3: IX To X Classes | E3: Total Roll | F3: VI To VIII Classes | G3: IX To X Classes | H3: Total Hostlers | I3: VI To VIII Classes | J3: IX To X Classes | K3: Total Attended | L3: VI To VIII Classes | M3: IX To X Classes | N3: Total MDM Taken | O3: Opening Balance of Rice | P3: Rice Received F.P Shop | Q3: Total Rice | R3: Rice Consumption as per MDM taken Pupil | V3: Rate as per school strength | W3: VI To VIII Classes Rs. | X3: IX To X Classes Rs. | Y3: Total RS.
R4: VI To VIII Classes @150 g | S4: IX To X Classes @150 g | T4: Total Consumption | U4: Closeing Balance of Rice
A5: 1 | B5: 2 | C5: 3 | D5: 4 | E5: 5 | F5: 6 | G5: 7 | H5: 8 | I5: 9 | J5: 10 | K5: 11 | L5: 12 | M5: 13 | N5: 14 | O5: 15 | P5: 16 | Q5: 17 | R5: 18 | S5: 19 | T5: 20 | U5: 21 | V5: 22 | W5: 23 | X5: 24 | Y5: 25 | Z5: 26 | AA5: 27 | AB5: 28 | AC5: 29
A6: ='MDM VI to X'!B13 -> 2010-10-01 | B6: =A6 -> 2010-10-01 | C6: =DATA!$E$9 -> 380 | O6: 580.55 | P6: 0 | Q6: =O6+P6 -> 580.55 | R6: =I6*0.15 -> 0 | S6: =J6*0.15 -> 0 | T6: =R6+S6 -> 0 | U6: =Q6-T6 -> 580.55
A7: ='MDM VI to X'!B14 -> 2010-10-02 | B7: =A7 -> 2010-10-02 | C7: =DATA!$E$9 -> 380 | D7: 147 | E7: =C7+D7 -> 527 | F7: 51 | G7: 22 | H7: =G7+F7 -> 73 | I7: 144 | J7: 100 | K7: =I7+J7 -> 244 | L7: 144 | M7: 100 | N7: =L7+M7 -> 244 | O7: 580.55 | P7: 0 | Q7: =O7+P7 -> 580.55 | R7: =I7*0.15 -> 21.6 | S7: =J7*0.15 -> 15 | T7: =R7+S7 -> 36.6 | U7: =Q7-T7 -> 543.95
A8: ='MDM VI to X'!B15 -> 2010-10-03 | B8: 2010-10-03 | C8: 230 | D8: 147 | E8: 377 | F8: 51 | G8: 22 | H8: 73 | I8: 152 | J8: 110 | K8: 262 | L8: 152 | M8: 110 | N8: 262 | O8: 543.95 | P8: 0 | Q8: 543.95 | R8: 22.8 | S8: 16.5 | T8: 39.3 | U8: 504.65
A9: ='MDM VI to X'!B16 -> 2010-10-04 | B9: 2010-10-04 | C9: 230 | D9: 147 | E9: 377 | F9: 51 | G9: 22 | H9: =G9+F9 -> 73 | I9: 153 | J9: 111 | K9: 264 | L9: 153 | M9: 111 | N9: 264 | O9: 504.65 | P9: 0 | Q9: 504.65 | R9: 22.95 | S9: 16.65 | T9: 39.6 | U9: 465.05
A10: ='MDM VI to X'!B17 -> 2010-10-05 | B10: 2010-10-05 | C10: 230 | D10: 147 | E10: 377 | F10: 51 | G10: 22 | H10: 73 | I10: 151 | J10: 114 | K10: 265 | L10: 151 | M10: 114 | N10: 265 | O10: 465.05 | P10: 500 | Q10: 965.05 | R10: 22.65 | S10: 17.1 | T10: 39.75 | U10: 925.3
A11: ='MDM VI to X'!B18 -> 2010-10-06 | B11: 2010-10-06 | C11: 230 | D11: 147 | E11: 377 | F11: 51 | G11: 22 | H11: 73 | I11: 154 | J11: 106 | K11: 260 | L11: 154 | M11: 106 | N11: 260 | O11: 925.3 | P11: 0 | Q11: 925.3 | R11: 23.1 | S11: 15.9 | T11: 39 | U11: 886.3
A12: ='MDM VI to X'!B19 -> 2010-10-07 | B12: 2010-10-07 | C12: 230 | D12: 147 | E12: 377 | F12: 51 | G12: 22 | H12: 73 | I12: 151 | J12: 103 | K12: 254 | L12: 151 | M12: 103 | N12: 254 | O12: 886.3 | P12: 0 | Q12: 886.3 | R12: 22.65 | S12: 15.45 | T12: 38.1 | U12: 848.2
A13: ='MDM VI to X'!B20 -> 2010-10-08 | B13: 2010-10-08 | O13: 848.2 | P13: 0 | Q13: 848.2 | R13: 0 | S13: 0 | T13: 0 | U13: 848.2
A14: ='MDM VI to X'!B21 -> 2010-10-09 | B14: 2010-10-09 | C14: 230 | D14: 147 | E14: 377 | F14: 51 | G14: 22 | H14: 73 | I14: 153 | J14: 105 | K14: 258 | L14: 153 | M14: 105 | N14: =L14+M14 -> 258 | O14: 848.2 | P14: 0 | Q14: 848.2 | R14: 22.95 | S14: 15.75 | T14: 38.7 | U14: 809.5
A15: ='MDM VI to X'!B22 -> 2010-10-10 | B15: 2010-10-10 | C15: 230 | D15: 147 | E15: 377 | F15: 51 | G15: 22 | H15: =G15+F15 -> 73 | I15: 151 | J15: 101 | K15: 252 | L15: 151 | M15: 101 | N15: 252 | O15: 809.5 | P15: 0 | Q15: 809.5 | R15: 22.65 | S15: 15.15 | T15: 37.8 | U15: 771.7
A16: ='MDM VI to X'!B23 -> 2010-10-11 | B16: 2010-10-11 | C16: 230 | D16: 147 | E16: 377 | F16: 51 | G16: 22 | H16: 73 | I16: 154 | J16: 103 | K16: 257 | L16: 154 | M16: 103 | N16: 257 | O16: 771.7 | P16: 0 | Q16: 771.7 | R16: 23.1 | S16: 15.45 | T16: 38.55 | U16: 733.15
A17: ='MDM VI to X'!B24 -> 2010-10-12 | B17: 2010-10-12 | C17: 230 | D17: 147 | E17: 377 | F17: 51 | G17: 22 | H17: 73 | I17: 155 | J17: 105 | K17: 260 | L17: 155 | M17: 105 | N17: 260 | O17: 733.15 | P17: 0 | Q17: 733.15 | R17: 23.25 | S17: 15.75 | T17: 39 | U17: 694.15
A18: ='MDM VI to X'!B25 -> 2010-10-13 | B18: 2010-10-13 | C18: 230 | D18: 147 | E18: 377 | F18: 51 | G18: 22 | H18: 73 | I18: 154 | J18: 100 | K18: 254 | L18: 154 | M18: 100 | N18: 254 | O18: 694.15 | P18: 0 | Q18: 694.15 | R18: 23.1 | S18: 15 | T18: 38.1 | U18: 656.05
A19: ='MDM VI to X'!B26 -> 2010-10-14 | B19: 2010-10-14 | O19: 656.05 | P19: 0 | Q19: 656.05 | R19: 0 | S19: 0 | T19: 0 | U19: 656.05
A20: ='MDM VI to X'!B27 -> 2010-10-15 | B20: 2010-10-15 | O20: 656.05 | P20: 0 | Q20: 656.05 | R20: 0 | S20: 0 | T20: 0 | U20: 656.05
A21: ='MDM VI to X'!B28 -> 2010-10-16 | B21: 2010-10-16 | C21: =171+60 -> 231 | D21: 149 | E21: 380 | F21: 51 | G21: 22 | H21: 73 | I21: 150 | J21: 109 | K21: 259 | L21: 150 | M21: 109 | N21: =L21+M21 -> 259 | O21: 656.05 | P21: 0 | Q21: 656.05 | R21: 22.5 | S21: 16.35 | T21: 38.85 | U21: 617.2
A22: ='MDM VI to X'!B29 -> 2010-10-17 | B22: 2010-10-17 | C22: =171+60 -> 231 | D22: 149 | E22: 380 | F22: 51 | G22: 22 | H22: 73 | I22: 155 | J22: 106 | K22: 261 | L22: 155 | M22: 106 | N22: 261 | O22: 617.2 | P22: 0 | Q22: 617.2 | R22: 23.25 | S22: 15.9 | T22: 39.15 | U22: 578.05
A23: ='MDM VI to X'!B30 -> 2010-10-18 | B23: 2010-10-18 | C23: 231 | D23: 149 | E23: 380 | F23: 51 | G23: 22 | H23: 73 | I23: 152 | J23: 102 | K23: 254 | L23: 152 | M23: 102 | N23: 254 | O23: 578.05 | P23: 0 | Q23: 578.05 | R23: 22.8 | S23: 15.3 | T23: 38.1 | U23: 539.95
A24: ='MDM VI to X'!B31 -> 2010-10-19 | B24: 2010-10-19 | C24: 231 | D24: 149 | E24: 380 | F24: 51 | G24: 22 | H24: 73 | I24: 149 | J24: 101 | K24: 250 | L24: 149 | M24: 101 | N24: 250 | O24: 539.95 | P24: 0 | Q24: 539.95 | R24: 22.35 | S24: 15.15 | T24: 37.5 | U24: 502.45
A25: ='MDM VI to X'!B32 -> 2010-10-20 | B25: 2010-10-20 | O25: 502.45 | P25: 0 | Q25: 502.45 | R25: 0 | S25: 0 | T25: 0 | U25: 502.45
A26: ='MDM VI to X'!B33 -> 2010-10-21 | B26: 2010-10-21 | C26: 231 | D26: 149 | E26: 380 | F26: 51 | G26: 22 | H26: 73 | I26: 149 | J26: 103 | K26: 252 | L26: 149 | M26: 103 | N26: =L26+M26 -> 252 | O26: 502.45 | P26: 0 | Q26: 502.45 | R26: 22.35 | S26: 15.45 | T26: 37.8 | U26: 464.65
A27: ='MDM VI to X'!B34 -> 2010-10-22 | B27: 2010-10-22 | O27: 464.65 | P27: 0 | Q27: 464.65 | R27: 0 | S27: 0 | T27: 0 | U27: 464.65
A28: ='MDM VI to X'!B35 -> 2010-10-23 | B28: 2010-10-23 | C28: 231 | D28: 149 | E28: 380 | F28: 51 | G28: 22 | H28: 73 | I28: 151 | J28: 101 | K28: 252 | L28: 151 | M28: 101 | N28: =L28+M28 -> 252 | O28: 464.65 | P28: 0 | Q28: 464.65 | R28: 22.65 | S28: 15.15 | T28: 37.8 | U28: 426.85
A29: ='MDM VI to X'!B36 -> 2010-10-24 | B29: 2010-10-24 | O29: 426.85 | P29: 0 | Q29: 426.85 | R29: 0 | S29: 0 | T29: 0 | U29: 426.85
A30: ='MDM VI to X'!B37 -> 2010-10-25 | B30: 2010-10-25 | C30: 231 | D30: 149 | E30: 380 | F30: 51 | G30: 22 | H30: 73 | I30: 147 | J30: 96 | K30: 243 | L30: 147 | M30: 96 | N30: =L30+M30 -> 243 | O30: 426.85 | P30: 0 | Q30: 426.85 | R30: 22.05 | S30: 14.4 | T30: 36.45 | U30: 390.4
A31: ='MDM VI to X'!B38 -> 2010-10-26 | B31: 2010-10-26 | C31: 231 | D31: 149 | E31: 380 | F31: 51 | G31: 22 | H31: 73 | I31: 167 | J31: 130 | K31: 297 | L31: 167 | M31: 130 | N31: 297 | O31: 390.4 | P31: 0 | Q31: 390.4 | R31: 25.05 | S31: 19.5 | T31: 44.55 | U31: 345.85
A32: ='MDM VI to X'!B39 -> 2010-10-27 | B32: 2010-10-27 | C32: 231 | D32: 149 | E32: 380 | F32: 51 | G32: 22 | H32: 73 | I32: 168 | J32: 131 | K32: 299 | L32: 168 | M32: 131 | N32: 299 | O32: 345.85 | P32: 0 | Q32: 345.85 | R32: 25.2 | S32: 19.65 | T32: 44.85 | U32: 301
A33: ='MDM VI to X'!B40 -> 2010-10-28 | B33: 2010-10-28 | C33: 231 | D33: 149 | E33: 380 | F33: 51 | G33: 22 | H33: 73 | I33: 168 | J33: 130 | K33: 298 | L33: 168 | M33: 130 | N33: 298 | O33: 301 | P33: 0 | Q33: 301 | R33: 25.2 | S33: 19.5 | T33: 44.7 | U33: 256.3
A34: ='MDM VI to X'!B41 -> 2010-10-29 | B34: 2010-10-29 | O34: 256.3 | P34: 0 | Q34: 256.3 | R34: 0 | S34: 0 | T34: 0 | U34: 256.3
A35: ='MDM VI to X'!B42 -> 2010-10-30 | B35: 2010-10-30 | C35: 231 | D35: 149 | E35: 380 | F35: 51 | G35: 22 | H35: 73 | I35: 164 | J35: 126 | K35: 290 | L35: 164 | M35: 126 | N35: =L35+M35 -> 290 | O35: 256.3 | P35: 0 | Q35: 256.3 | R35: 24.6 | S35: 18.9 | T35: 43.5 | U35: 212.8
A36: ='MDM VI to X'!B43 -> 2010-10-31 | B36: 2010-10-31 | C36: 231 | D36: 149 | E36: 380 | F36: 51 | G36: 22 | H36: 73 | I36: 160 | J36: 124 | K36: 284 | L36: 160 | M36: 124 | N36: 284 | O36: 212.8 | P36: 0 | Q36: 212.8 | R36: 24 | S36: 18.6 | T36: 42.6 | U36: 170.2
A37: ='[1]Register VI to VIII & IX To X'!A34 -> Total | C37: =SUM(C6:C36) -> 5832 | D37: =SUM(D6:D36) -> 3405 | E37: 8857 | F37: 1173 | G37: 506 | H37: 1679 | I37: 3552 | J37: 2517 | K37: 6069 | L37: 3552 | M37: 2517 | N37: 6069 | O37: 17445.15 | P37: 500 | Q37: 17945.15 | R37: 532.8 | S37: 377.55 | T37: 910.35 | U37: 17034.8 | V37: 0 | W37: 0 | X37: 0 | Y37: 0 | Z37: 0 | AA37: 0 | AB37: 0 | AC37: 0
